Cogmind - Beta 16 X2 @@@ ROGUE MODE // 2025.10.15 @ 01:56:43 Player: alice_fexa Result: Assimilated 0b10! Performance ------------- Evolutions (9) 4500 Regions Visited (23) 4600 Robots Destroyed (1239) 6195 Value Destroyed (83709) 83709 Prototype IDs (378) 7560 Alien Tech Used (3) 600 Bonus (113691) 113691 TOTAL SCORE: 220855 Bonus ------- Triggered High Security 1500 High Alert Combat Kills 61025 Follower Combat Kills 1502 Network Hubs Disabled 200 Met Warlord at Base 500 MAIN.C Attacked Warlord 500 Warlord Defense Kills 2504 Built Enhanced Grunts 300 A7 Reached Mainframe 300 Met R17 at Cetus 500 Met R17 at Research 2000 Met Warlord at Research 2000 Invited to Help at Command 2000 Scanned by Researcher 500 Destroyed Superfortress 15000 Destroyed MAIN.C Guards 500 Met MAIN.C 5000 Destroyed MAIN.C Shell 5000 Destroyed MAIN.C 10000 Used 0b10 Conduit 2000 Win 3000 Friendly Fire -2140 Cogmind --------- Core Integrity 1304/1600 Matter 300/300 Energy 3466/3470 System Corruption 0% Temperature Cool (2) Movement Walking (46) Location 0b10 Command Parts ------- > --- POWER (3) -------- Quantum-Antimatter Reactor > --- PROPULSION (6) --- High-density Centrium Heavy Treads Biometal Exoskeleton > --- UTILITY (13) ----- Armored Scrap Engine Concept Antigrav Storage Unit Spectral Analyzer Experimental Active Sensor Suite Concept Weapon Articulator (fused) Concept Core Analysis Suite Experimental Kinecellerator (fused) Experimental Weapon Cycler Heavy Regenerative Plating (fused) AEGIS Remote Shield > --- WEAPON (4) ------- Heavy Quantum Rifle Helical Railgun Hpw. Ballistic Helical Construct/C > --- INVENTORY (25) --- Concept Thermoelectric Network Concept Thermoelectric Network Concept Chromion Battery (800) Concept NT7 Matterbank (750) Concept Weapon Articulator Experimental Core Analyzer Advanced Kinecellerator Mini Quantum Capacitor Experimental ECM Suite Experimental Reaction Control System Concept Reaction Jets Advanced Phase Shifter Advanced Phase Shifter Centrium Medium Armor Plating Graphene Brace Concept Beam Splitter Advanced Force Field Experimental Remote Shield Concept Matter Streamer Crosscalibrator Transdimensional Reconstructor Graviton Cannon Graviton Cannon Concept Miniperforator Concept Smart ZDS Peak State ------------ > --- POWER ------------ Quantum-Antimatter Reactor > --- PROPULSION ------- Thunder Leg High-density Centrium Leg Biometal Exoskeleton > --- UTILITY ---------- Armored Scrap Engine Concept Antigrav Storage Unit Spectral Analyzer Experimental Active Sensor Suite Concept Weapon Articulator Concept Core Analysis Suite Experimental Weapon Cycler Heavy Regenerative Plating Concept Energy Mantle Concept Network Penetrator > --- WEAPON ----------- Concept Miniperforator Hpw. Ballistic Helical Construct/C > --- INVENTORY -------- Concept Thermoelectric Network Concept Thermoelectric Network Concept Chromion Battery Concept NT7 Matterbank Concept Weapon Articulator Experimental Core Analyzer Advanced Particle Accelerator Experimental Kinecellerator Experimental Kinecellerator Mini Quantum Capacitor Experimental Reaction Control System Concept Reaction Jets Advanced Phase Shifter Advanced Phase Shifter Centrium Medium Armor Plating Graphene Brace Concept Beam Splitter Experimental Remote Shield Advanced Component Analysis Suite Concept Matter Streamer Crosscalibrator Transdimensional Reconstructor Compact Linear Accelerator Concept Miniperforator Concept Smart ZDS [Rating: 289] Favorites ----------- Power Constructs Engine Improved Deuterium Engine Power Core Micro Fission Core Reactor Constructs Propulsion Constructs Treads Light Treads Leg Constructs Wheel Wheel Hover Unit Improved Hover Unit Flight Unit Cooled Cesium-ion Thruster Utility Armored Scrap Engine Device Armored Scrap Engine Storage Large Storage Unit Processor Spectral Analyzer Hackware System Mapper Protection Heavy Regenerative Plating Weapon Constructs Energy Gun Beam Rifle Energy Cannon Beam Cannon Ballistic Gun Helical Railgun Ballistic Cannon Constructs Launcher Fusion Bomb Launcher Special Weapon Improved Plasma Cutter Impact Weapon Powered Hammer Slashing Weapon Great Axe Piercing Weapon Plasma Lance Build | -11 -10 -10 -8 -7 -7 -7 -5 -5 -5 -5 -5 -4 -4 -4 -4 -3 -3 -3 -2 -2 -2 -1 -1 ------- Run | Yrd Mat Sub Mat Fac Sto Rec Fac Ext Cet Arc Hub Fac Upp Upp War Pro Res Qua Res Tes Frg Acc Com Slots Evolved 18 | . . . 4 2 . . 4 . . . . 2 . . . . 2 . 2 . . 2 . Power 1 | . . . . . . . 1 . . . . . . . . . . . . . . . . Propulsion 4 | . . . 2 . . . 1 . . . . 1 . . . . . . . . . . . Utility 11 | . . . 2 1 . . 2 . . . . 1 . . . . 1 . 2 . . 2 . Weapon 2 | . . . . 1 . . . . . . . . . . . . 1 . . . . . . Parts Attached 246 | 6 11 6 21 8 1 5 8 10 6 2 1 18 1 . 13 1 28 11 14 8 35 5 27 Power 19 | 1 3 1 1 1 . . 1 1 . . . 2 . . 1 . 7 . . . . . . Engine 9 | 1 3 . 1 1 . . 1 . . . . 1 . . . . 1 . . . . . . Core 2 | . . 1 . . . . . 1 . . . . . . . . . . . . . . . Reactor 8 | . . . . . . . . . . . . 1 . . 1 . 6 . . . . . . Propulsion 37 | 2 2 2 7 . . 2 . 2 . . . 3 . . 1 1 4 . 1 . 3 2 5 Treads 21 | 2 1 1 5 . . 1 . . . . . . . . . . 3 . 1 . 2 . 5 Leg 5 | . . . 1 . . . . . . . . . . . . . 1 . . . 1 2 . Wheel 5 | . 1 1 1 . . 1 . . . . . . . . . 1 . . . . . . . Hover 3 | . . . . . . . . 1 . . . 1 . . 1 . . . . . . . . Flight 3 | . . . . . . . . 1 . . . 2 . . . . . . . . . . . Utility 138 | 1 3 1 6 2 . 2 5 3 4 2 1 12 1 . 9 . 14 9 11 7 26 2 17 Device 78 | . 1 . 2 1 . 2 2 2 1 2 . 9 1 . 4 . 5 5 1 4 20 . 16 Storage 14 | 1 1 . . . . . 1 1 . . . . . . 1 . 3 2 2 1 1 . . Processor 26 | . 1 1 3 1 . . 1 . . . . 1 . . 2 . 4 . 8 . 3 . 1 Hackware 5 | . . . . . . . . . . . . 1 . . . . 1 1 . . . 2 . Protection 15 | . . . 1 . . . 1 . 3 . 1 1 . . 2 . 1 1 . 2 2 . . Artifact . | . . . . . . . . . . . . . . . . . . . . . . . . Weapon 52 | 2 3 2 7 5 1 1 2 4 2 . . 1 . . 2 . 3 2 2 1 6 1 5 Energy Gun 13 | 1 . 1 4 3 . . . . 1 . . . . . 1 . . . . . 1 . 1 Energy Cannon 7 | . 2 . . . . . 1 1 . . . 1 . . . . . 1 . 1 . . . Ballistic Gun 11 | 1 . 1 2 . . . 1 2 1 . . . . . 1 . 1 . . . . . 1 Ballistic Cannon 6 | . 1 . . . . . . . . . . . . . . . . 1 1 . 2 1 . Launcher 6 | . . . 1 . . 1 . . . . . . . . . . . . 1 . 1 . 2 Special Weapon 4 | . . . . . 1 . . 1 . . . . . . . . 1 . . . . . 1 Impact Weapon 1 | . . . . 1 . . . . . . . . . . . . . . . . . . . Slashing Weapon 2 | . . . . 1 . . . . . . . . . . . . . . . . 1 . . Piercing Weapon 2 | . . . . . . . . . . . . . . . . . 1 . . . 1 . . Special Melee Weapon . | . . . . . . . . . . . . . . . . . . . . . . . . Unidentified Prototypes 52 | . . . 1 . . 1 . 3 3 . . 1 . 1 10 . 4 4 2 4 10 1 7 Parts Lost 22 | . 1 . 2 . . 4 . 2 . . . . . . . . 1 2 2 1 2 . 5 Power 4 | . . . . . . 1 . 2 . . . . . . . . 1 . . . . . . Propulsion 5 | . 1 . 2 . . 1 . . . . . . . . . . . . . . 1 . . Utility 7 | . . . . . . . . . . . . . . . . . . 1 1 1 1 . 3 Weapon 6 | . . . . . . 2 . . . . . . . . . . . 1 1 . . . 2 Highest Loss Streak 3 | . 1 . 2 . . 3 . 2 . . . . . . . . 1 1 2 1 1 . 1 To Critical Strikes 1 | . . . . . . . . . . . . . . . . . . . . . . . 1 Average Backups 18 | 2 13 19 19 19 20 19 14 14 15 15 15 14 15 15 15 15 14 14 14 14 22 24 24 Power . | . 2 2 3 3 3 2 2 1 1 1 1 1 1 1 . . . . . . . . . Propulsion . | . 1 1 . 2 2 . . . . . . . . . . . . . . . . . . Utility 12 | . 2 3 5 6 6 6 2 4 6 7 7 6 7 7 8 9 9 9 9 10 19 20 21 Weapon 4 | . 6 11 9 7 8 8 8 6 6 6 5 5 5 5 5 4 3 3 3 3 2 3 2 Tool/Special . | . . . . . . . . . . . . . . . . . . . . . . . . Unused Backups 88 | . 5 3 11 1 . 5 7 1 2 . . 2 . . 4 . 5 6 13 1 7 1 14 Power 13 | . 3 . 3 . . . 2 1 1 . . . . . 1 . . . 1 . 1 . . Propulsion 5 | . . 1 . . . . . . . . . . . . . . . . 3 1 . . . Utility 38 | . 2 . . 1 . 1 1 . . . . 2 . . 1 . 3 3 6 . 6 1 11 Weapon 31 | . . 2 8 . . 4 4 . 1 . . . . . 2 . 2 3 3 . . . 2 Tool/Special 1 | . . . . . . . . . . . . . . . . . . . . . . . 1 Average Slot Usage (%) 65 | . 98 99 92 99 100 86 60 60 70 70 70 69 73 72 72 66 63 57 61 60 56 53 56 Engine 1 | . 13 9 6 6 6 6 6 2 . . . . . . . . . . . . . . . Core 1 | . . 7 6 6 6 . . 4 11 11 11 9 10 10 10 5 . . . . . . . Reactor 2 | . . . . . . . . . . . . . . . 2 4 7 4 4 4 4 3 3 Treads 5 | . 19 17 13 25 25 16 . . . . . . . . . . 3 3 4 4 4 2 2 Leg 2 | . . . . . . . . . . . . . . . . 1 3 4 4 4 4 3 3 Flight 1 | . . . . . . 2 4 5 11 11 11 11 15 15 15 9 . . . . . . . Device 16 | . 9 9 11 12 12 13 16 17 17 17 17 15 15 15 14 15 12 15 19 14 16 17 22 Storage 4 | . 14 9 6 6 6 6 5 5 5 5 5 5 5 5 5 5 4 4 4 4 4 3 3 Processor 9 | . 3 7 11 17 18 17 7 5 5 5 5 10 10 10 10 10 8 9 12 16 11 7 7 Protection 3 | . . . 1 . . . 4 5 5 5 5 4 5 5 5 5 4 3 3 3 3 3 3 Energy Gun 1 | . 3 8 8 14 17 12 . . . . . . . . . . . . . . . . . Energy Cannon 1 | . 14 16 6 6 6 1 . 3 . . . 2 3 5 . . . . . . . . . Ballistic Cannon 4 | . 3 . . . . 1 5 5 5 5 5 5 5 5 5 5 4 5 4 6 4 4 4 Peak Build Rating 289 | 6 11 31 45 53 53 65 84 95 108 103 100 124 125 125 136 146 185 192 214 216 267 289 289 Average Rating 179 | 4 9 27 41 50 51 54 71 81 103 101 97 112 124 124 129 131 175 183 202 211 242 265 278 On Entrance 112 | . 6 11 31 44 51 53 65 73 95 102 100 99 123 125 123 135 146 182 183 211 213 254 286 Avg Prop Armor Cover (%) 5 | . 7 11 13 . . 2 . . . . . . . . . . 8 8 8 7 6 2 5 Naked Turns . | . . . . . . . . . . . . . . . . . . . . . . . . Heaviest Build 166 | 13 52 62 74 71 70 71 56 67 67 61 62 70 72 70 75 74 102 98 104 116 148 146 166 Greatest Support 176 | 40 40 40 80 80 80 80 65 71 71 71 71 78 78 78 78 134 176 139 139 139 139 157 158 Greatest Overweight (x) 9 | 2 5 6 6 . . 6 . 8 . . . . . . . 9 . 1 1 . 1 3 1 Average Overweight (x) . | . 2 4 3 . . . . . . . . . . . . . . . . . . . . Largest Inventory Capacity 25 | 8 20 20 20 20 20 20 20 15 15 15 15 15 15 15 15 15 15 25 15 15 25 25 25 Average Capacity 19 | 7 15 20 20 20 20 20 15 15 15 15 15 15 15 15 15 15 15 15 15 15 23 25 25 Most Carried 25 | 3 20 20 20 20 20 20 18 15 15 15 15 15 15 15 15 15 15 15 15 15 25 25 25 Average Carried 18 | 2 13 19 19 19 20 19 14 14 14 15 15 14 15 15 14 15 14 14 14 14 23 24 24 Final Capacity 25 | 8 20 20 20 20 20 20 15 15 15 15 15 15 15 15 15 15 15 15 15 15 25 25 25 Final Carried 25 | 3 20 20 20 20 20 19 15 15 15 15 15 15 15 15 15 15 15 15 15 15 24 25 25 Scrap Engine Consumption 176 | . . . . . . 34 12 16 8 4 . 7 1 . 13 . 19 15 7 3 27 1 9 Constructs Created 6 | . . . . . . 3 . 1 . . . . . . . . 1 . . . 1 . . Constructs Modified 74 | . . . . . . 9 7 7 . . . . . . . 13 12 5 6 . 8 4 3 Class Distribution -------------------- 33% | Construct 16% | Gunner 8% | Scavenger-Construct 7% | Hacker-Construct 6% | Skirmisher 6% | Scavenger-Gunner 5% | Scavenger-Skirmisher 5% | Mutant Dominant Class ---------------- Mutant | -10/Materials Scavenger-Gunner | -10/Subcaves Scavenger-Gunner | -8/Materials Scavenger-Skirmisher | -7/Factory Scavenger-Skirmisher | -7/Storage Scavenger-Skirmisher | -7/Recycling Construct | -5/Factory Construct | -5/Extension Commander-Construct | -5/Cetus Commander-Construct | -5/Archives Commander-Construct | -5/Hub_04(d) Construct | -4/Factory Construct | -4/Upper Caves Construct | -4/Upper Caves Scout | -4/Warlord Scout | -3/Proximity Caves Hacker-Construct | -3/Research Hacker-Construct | -3/Quarantine Scavenger-Construct | -2/Research Scavenger-Construct | -2/Testing Construct | -2/Protoforge Hacker-Skirmisher | -1/Access Gunner | -1/Command Resources | -11 -10 -10 -8 -7 -7 -7 -5 -5 -5 -5 -5 -4 -4 -4 -4 -3 -3 -3 -2 -2 -2 -1 -1 ----------- Run | Yrd Mat Sub Mat Fac Sto Rec Fac Ext Cet Arc Hub Fac Upp Upp War Pro Res Qua Res Tes Frg Acc Com Matter Collected 46403 | 272 636 80 362 74 58 501 374 444 317 122 102 648 234 158 1712 118 2123 2598 3135 2195 15662 1231 13247 Remotely 14522 | . . . . . . . . . . . . . . . . . . . . . 7673 197 6652 Salvage Created 92272 | 72 807 169 723 119 58 490 475 450 75 92 26 1198 279 147 1049 16 2072 1701 3187 3597 36170 1817 37483 Parts 3000 | . 50 13 34 4 . 10 10 20 4 4 . 30 13 6 38 1 79 94 112 102 969 95 1312 Haulers Intercepted 19 | . 2 . 3 . 1 . 1 . . . . 3 . . . . 6 . 1 1 . 1 . Recyclers Shooed 7 | . . . . . . . . . . . . 2 . . . . . 2 . . . 2 1 Parts Field Recycled . | . . . . . . . . . . . . . . . . . . . . . . . . Retrieved Matter . | . . . . . . . . . . . . . . . . . . . . . . . . Parts Self-Destructed 27 | . . 8 . . . . . . . . . . 13 6 . . . . . . . . . Prevented . | . . . . . . . . . . . . . . . . . . . . . . . . Parts Restored 5 | . . . . . . . . . . . . . . . . . . . . . 5 . . Faulty 5 | . . . . . . . . . . . . . . . . . . . . . 5 . . Kills | -11 -10 -10 -8 -7 -7 -7 -5 -5 -5 -5 -5 -4 -4 -4 -4 -3 -3 -3 -2 -2 -2 -1 -1 ------- Run | Yrd Mat Sub Mat Fac Sto Rec Fac Ext Cet Arc Hub Fac Upp Upp War Pro Res Qua Res Tes Frg Acc Com Combat Hostiles Destroyed 1269 | . 18 3 18 2 . 10 5 7 1 . . 6 4 2 20 . 22 20 48 42 463 27 551 Melee 2 | . . . . . . . . 1 . . . . . . . . . . . . . . 1 Guns 23 | . 8 1 7 1 . 3 1 1 . . . . . . . . . . . . 1 . . Cannons 1110 | . 10 2 2 . . . 4 3 1 . . 6 4 2 20 . 22 20 44 42 447 18 463 AOE 122 | . . . 9 . . 5 . . . . . . . . . . . . 4 . 12 9 83 Classes Destroyed 33 | 1 8 3 . 1 . 2 . . . . . . 1 . 1 . 3 . 3 2 8 . . Worker 16 | . 1 . 2 . . . . . . . . . . . . . . 1 . 1 1 2 8 Builder 13 | . 1 . . . . . . . . . . . . . . . 2 . . 1 6 3 . Tunneler 1 | . . . . . . . . . . . . . . . . . 1 . . . . . . Hauler 19 | . 2 . 3 . 1 . 1 . . . . 3 . . . . 6 . 1 1 . 1 . Recycler 22 | 1 . . 1 . . . . . . . . 3 . . . . 1 4 . 1 . 3 8 Carrier 34 | . . . . . . . . . . . . . . . . . . . . . 20 . 14 Mechanic 46 | . 1 . . . . . 1 . . . . . . . 1 . . . . 1 27 . 15 Operator 12 | . 1 . . 1 . . 1 . . 1 . 1 . . . . . 2 . 1 1 2 1 Drone 9 | . . . . . . . . . . . . . . . . . . . . . 8 . 1 Watcher 34 | . 3 . 1 . . . 2 1 1 . 1 3 . . . . 1 2 1 2 2 3 11 Swarmer 86 | . 3 . 10 . . . . . . . . . . . 1 . 3 . 5 . 5 14 45 Cutter 12 | . . . . . . . . . . . . . . . . . . . . . . . 12 Saboteur 38 | . . . . . . . . . . . . . . . . . . . . 1 17 . 20 Grunt 422 | . 15 1 6 . . 1 2 3 . . . 2 3 2 8 . 8 2 10 23 172 1 163 Brawler 71 | . . . . . . . . . . . . . 1 . 2 . . . 2 5 25 . 36 Duelist 72 | . . . . . . . . . . . . . . . . . . . 1 4 33 . 34 Protector 58 | . . . . . . 1 . . . . . . . . 5 . 1 . . 1 27 . 23 Researcher 9 | . . . . . . . . . . . . . . . . . . . . 3 6 . . Sentry 37 | . . 1 2 . . 3 . 2 . . . . . . . . 2 . 3 . 15 3 6 Demolisher 20 | . . . . . . . . . . . . . . . . . 1 . 5 . . . 14 Specialist 29 | . . . . . . . . . . . . . . . 1 . . . . . 4 . 24 Hunter 100 | . . . . . . 2 1 2 . . . . . . . . 1 2 5 2 24 4 57 Programmer 170 | . . . . 2 . 1 2 . . . . 4 . . 3 . 1 4 1 5 74 3 70 Heavy 1 | . . . . . . . . . . . . . . . . . . . . . . . 1 Q-Series 5 | . . . . . . . . . . . . . . . . . . . . . 5 . . Behemoth 5 | . . . . . . . . . . . . . . . . . . . 1 . . . 4 Cetus Guard 1 | . . . . . . . . . 1 . . . . . . . . . . . . . . Quarantine Guard 12 | . . . . . . . . . . . . . . . . . . 12 . . . . . M Guard 2 | . . . . . . . . . . . . . . . . . . . . . . . 2 Hotshot 10 | . . . . . . . . . . . . . . . . . . . . . 10 . . Decapitator 10 | . . . . . . . . . . . . . . . . . . . . . 10 . . Immortal 3 | . . . . . . . . . . . . . . . . . . . . . 3 . . Overlord 1 | . . . . . . . . . . . . . . . . . . . . . 1 . . Combat Programmer 2 | . . . . . . . . . . . . . . . . . . . . . . . 2 Investigator 7 | . . . . . . . . . . . . . . . . . . . . . 4 . 3 Striker 40 | . . . . . . . . . . . . . . . . . 5 . 9 . 14 2 10 Executioner 40 | . . . . . . . . . . . . . . . . . . . 6 . 11 . 23 Alpha 7 4 | . . . . . . . . . . . . . . . . . . . . . 2 . 2 V-Series 2 | . . . . . . . . . . . . . . . . . . . . . 2 . . Protovariant Y 1 | . . . . . . . . . . . . . . . . . . . . 1 . . . Artisan 1 | . . 1 . . . . . . . . . . . . . . . . . . . . . Subdweller 3 | . . 1 . . . 2 . . . . . . . . . . . . . . . . . Decomposer 1 | . . . . . . . . . . . . . . . . 1 . . . . . . . Tinkerer 1 | . . . . . . . . . . . . . . . . . . . . . 1 . . Wasp 2 | . . . . . . . . . . . . . . . . . . . 2 . . . . Thug 1 | . . . . . . . . . . 1 . . . . . . . . . . . . . Savage 1 | . . . . . . . . . . . . . . . . . . . 1 . . . . Best Kill Streak 59 | 1 6 2 8 1 1 6 3 2 1 1 1 3 3 1 5 . 5 5 8 15 59 11 35 Combat Bots Only 52 | . 3 2 6 1 . 6 3 2 1 . . 2 3 1 5 . 5 4 8 12 52 10 30 Max Kills in Single Turn 12 | 1 1 1 3 1 1 4 1 1 1 1 1 1 1 1 1 1 1 1 3 1 5 5 12 Gunslinging . | . . . . . . . . . . . . . . . . . . . . . . . . Exploded 12 | . . . 3 . . 4 . . . . . . . . . . . . 3 . 4 5 12 Melee 1 | . . . . . . . . 1 . . . . . . . . . . . . . . 1 Uniques/NPCs Destroyed 3 | . . . . . . . . . . . . . . . . . . . . . 1 . 2 Superfortress (-2/Protoforge) MAIN.C Shell (-1/Command) MAIN.C (-1/Command) Combat | -11 -10 -10 -8 -7 -7 -7 -5 -5 -5 -5 -5 -4 -4 -4 -4 -3 -3 -3 -2 -2 -2 -1 -1 -------- Run | Yrd Mat Sub Mat Fac Sto Rec Fac Ext Cet Arc Hub Fac Upp Upp War Pro Res Qua Res Tes Frg Acc Com Hostile Shots Fired 1925 | . 95 9 78 11 . 118 49 48 8 2 1 19 . 9 1 . 27 127 94 108 750 35 336 Missed 634 | . 21 3 23 3 . 44 17 19 2 2 . 9 . 4 . . 6 40 37 28 224 12 140 Hits 1291 | . 74 6 55 8 . 74 32 29 6 . 1 10 . 5 1 . 21 87 57 80 526 23 196 Melee 67 | . . . . . . . . . . . . . . . . . 17 . 9 2 28 . 11 Projectile 1224 | . 74 6 55 8 . 74 32 29 6 . 1 10 . 5 1 . 4 87 48 78 498 23 185 AOE 13 | . . . . 1 . . . . . . . . . . . . . . . . 11 . 1 Critical Strikes 76 | . . . 1 1 . 1 1 1 . . 1 . . . . . . 3 3 6 47 . 11 Actively Blocked 10 | . . . . . . . . . . . . . . . . . . . . . 4 . 6 Part Disruptions 2 | . . . . . . . . . . . . . . . . . . . . . 1 . 1 Damage Taken 20814 | . 884 84 623 157 18 778 630 549 146 . 68 304 . 100 46 . 1161 2616 1181 1001 7742 249 2477 Core 1886 | . 192 23 143 14 18 115 59 51 . . . 36 . 22 . . 74 172 47 22 602 25 271 Absorbed by Shields 9630 | . . . . . . . . 38 63 . . . . . . . . . 744 978 5248 241 2318 Reduced by Siege Mode 711 | . . . . . . . . . . . . . . . . . 67 113 37 74 327 . 93 Ignored by Resistances 2818 | . . . . . . . . . . . . 28 . . . . . . . . 1935 80 775 Regen/Repaired (Parts) 9117 | . 304 . . . . . 176 482 100 . . 72 . . . 246 392 1551 253 77 3529 612 1323 Core Remaining (%) 73 | 100 . 14 74 . . 79 . . . . 89 . . . . 94 . 81 . . 53 . 81 Volleys Fired 2766 | 12 85 27 44 6 . 15 24 53 19 8 4 51 23 40 107 3 129 133 194 107 674 60 948 Largest 4 | 2 2 3 3 4 . 3 2 2 1 1 1 1 1 1 1 1 1 2 1 1 2 1 2 Hottest 250 | 70 120 180 181 250 . 190 69 110 41 41 41 90 90 90 41 90 66 105 78 78 88 58 86 Shots Fired 3030 | 24 170 39 110 24 . 38 43 70 19 8 4 51 24 40 107 3 129 141 194 107 669 60 956 Gun 336 | 24 97 26 71 18 . 36 19 14 . . . . . . . . . . . . 3 . 28 Cannon 2660 | . 73 13 32 6 . . 24 56 19 8 4 51 24 40 107 3 129 141 192 106 662 58 912 Launcher 34 | . . . 7 . . 2 . . . . . . . . . . . . 2 1 4 2 16 Special . | . . . . . . . . . . . . . . . . . . . . . . . . Kinetic 2615 | 12 116 . 31 . . . 37 30 19 8 4 19 21 27 107 1 129 131 192 106 627 58 940 Thermal 311 | 12 54 39 72 24 . 36 . 14 . . . 32 3 13 . 2 . 10 . . . . . Explosive 34 | . . . 7 . . 2 . . . . . . . . . . . . 2 1 4 2 16 Electromagnetic 32 | . . . . . . . 6 26 . . . . . . . . . . . . . . . Entropic 38 | . . . . . . . . . . . . . . . . . . . . . 38 . . Robot Hit Streak 62 | 6 9 6 26 7 . 30 15 16 14 4 2 8 3 3 6 2 14 15 21 23 46 17 62 Robot Miss Streak 6 | 2 5 2 5 3 . 1 4 4 1 2 2 3 2 4 4 . 3 3 4 2 6 4 4 Penetration Max 3 | . . . . . . . . 1 . . . 1 . . 1 . . . 1 . 3 1 2 Secondary Targets 1 | . 1 . . . . . . . . . . . . . . . . . . . . . . Max Gunslinging Chain 1 | . 1 . . . . . . . . . . . . . . . . . . . . . . Capacitor 29 | . . . . . . . . . . . . . . . . . . . . . 29 . . Shots Hit Robots 2091 | 18 108 11 64 20 1 32 36 42 11 5 2 32 11 9 65 1 85 77 114 86 566 41 654 Core Hits 1807 | 3 44 5 32 4 . 39 9 14 5 5 1 12 5 2 32 1 30 34 52 39 902 36 501 Critical Kills 177 | . 1 . . . . . . . 1 1 . 4 2 1 9 1 6 . . . 121 6 24 Critical Parts Destroyed 274 | . . . . . 1 . 1 . 4 . . 2 1 3 13 . 5 . . . 179 5 60 Critical Strikes 596 | . 2 . 4 2 1 3 1 . 6 3 . 6 4 4 23 1 18 17 19 13 359 12 98 Burn 9 | . . . 4 2 . 3 . . . . . . . . . . . . . . . . . Destroy 493 | . 1 . . . . . . . 6 3 . 5 4 4 23 1 12 . . . 325 11 98 Blast 91 | . 1 . . . . . . . . . . . . . . . 6 17 19 13 34 1 . Smash 3 | . . . . . 1 . 1 . . . . 1 . . . . . . . . . . . Melee Attacks 65 | . . . . 7 1 1 14 2 . . 3 28 . . 6 . . . . . 3 . . Impact 56 | . . . . 1 1 1 14 2 . . 3 28 . . 6 . . . . . . . . Slashing 9 | . . . . 6 . . . . . . . . . . . . . . . . 3 . . Piercing . | . . . . . . . . . . . . . . . . . . . . . . . . Sneak Attacks 15 | . . . . . 1 . 4 2 . . . 8 . . . . . . . . . . . Combat Hostiles . | . . . . . . . . . . . . . . . . . . . . . . . . Follow-up Attacks . | . . . . . . . . . . . . . . . . . . . . . . . . Damage Inflicted 463303 | 174 1403 213 2047 451 63 1209 1539 1412 686 402 92 2046 611 543 4793 88 7122 8694 18927 15740 154586 8916 231546 Guns 3205 | 174 625 124 828 232 . 555 300 235 . . . . . . . . . . . . 94 . 38 Cannons 425998 | . 778 89 280 83 . . 665 1012 686 402 92 1118 611 543 4793 88 7122 8694 18480 15740 149167 6375 209180 Explosions 32122 | . . . 939 . . 654 . . . . . . . . . . . . 447 . 5276 2478 22328 Melee 1866 | . . . . 136 63 . 574 165 . . . 928 . . . . . . . . . . . Ramming 112 | . . . . . . . . . . . . . . . . . . . . . 49 63 . Kinetic 421316 | 75 918 . 373 . . . 829 709 686 402 92 945 611 543 4793 88 7122 8694 18480 15740 144623 6375 209218 Thermal 2994 | 99 485 213 1123 315 . 555 . 31 . . . 173 . . . . . . . . . . . Explosive 31734 | . . . 551 . . 654 . . . . . . . . . . . . 447 . 5276 2478 22328 Electromagnetic 643 | . . . . . . . 136 507 . . . . . . . . . . . . . . . Impact 1770 | . . . . 40 63 . 574 165 . . . 928 . . . . . . . . . . . Slashing 96 | . . . . 96 . . . . . . . . . . . . . . . . . . . Piercing . | . . . . . . . . . . . . . . . . . . . . . . . . Entropic 4638 | . . . . . . . . . . . . . . . . . . . . . 4638 . . Highest Corruption 33 | . . . . 1 1 4 5 5 5 5 . 3 3 3 3 . . 5 . 1 33 . 3 Average Corruption 6 | . . . . 1 1 3 4 5 5 3 . 1 3 3 3 . . 4 . 1 14 . 1 Corruption Purged 20 | . . . . . . . . . . 5 . 2 . . . . . 5 . . . . 8 Corruption Blocked . | . . . . . . . . . . . . . . . . . . . . . . . . Effects 448 | . . . . 4 3 50 10 28 10 3 . 3 11 13 . . . 19 . 4 255 . 35 Message Errors 88 | . . . . . . 7 3 7 2 1 . 1 4 1 . . . 8 . 2 45 . 7 Matter Fused 112 | . . . . 1 2 16 2 8 2 . . . 4 4 . . . 4 . 1 59 . 9 Heat Flow Errors 46 | . . . . . . 6 1 3 2 . . . . 1 . . . 1 . 1 26 . 5 Energy Discharges 56 | . . . . 1 . 7 2 1 2 1 . 1 1 4 . . . 3 . . 29 . 4 Parts Rejected 11 | . . . . . . 1 . . . 1 . . . . . . . . . . 9 . . Parts Fused 7 | . . . . . . 1 . . . . . . . . . . . . . . 5 . 1 Data Loss (minor) 57 | . . . . 1 1 8 1 5 1 . . 1 1 . . . . 2 . . 28 . 8 Data Loss (major) 17 | . . . . 1 . 3 . 2 1 . . . . 1 . . . . . . 9 . . Misfires 18 | . . . . . . . 1 1 . . . . 1 1 . . . 1 . . 12 . 1 Alerts 5 | . . . . . . 1 . 1 . . . . . . . . . . . . 3 . . Misdirections 10 | . . . . . . . . . . . . . . . . . . . . . 10 . . Weapon Failures 21 | . . . . . . . . . . . . . . 1 . . . . . . 20 . . Overload Shots . | . . . . . . . . . . . . . . . . . . . . . . . . Overflow Damage 103598 | . 11 . 175 23 63 4 246 37 67 . 1 435 35 15 295 . 981 1073 3294 3626 34520 1519 57178 Projectiles 98134 | . 11 . . . . . 21 14 67 . 1 148 35 15 295 . 981 1073 3275 3626 33571 827 54174 Explosions 4769 | . . . 175 . . 4 . . . . . . . . . . . . 19 . 915 652 3004 Melee 695 | . . . . 23 63 . 225 23 . . . 287 . . . . . . . . 34 40 . Knockbacks 457 | . 6 . . . . . 6 2 1 1 . 7 1 5 5 . 26 12 41 15 156 7 166 Impact 4 | . . . . . . . 1 1 . . . 1 . . . . . . . . . 1 . Kinetic 399 | . 6 . . . . . 5 1 1 1 . 5 1 5 5 . 25 9 40 15 134 6 140 Secondary 54 | . . . . . . . . . . . . 1 . . . . 1 3 1 . 22 . 26 Self-Inflicted Damage . | . . . . . . . . . . . . . . . . . . . . . . . . Shots . | . . . . . . . . . . . . . . . . . . . . . . . . Rammed 2 | . . . . . . . . . . . . . . . . . . . . . . 2 . Targets Rammed 3 | . . . . . . . . . . . . . . . . . . . . . 1 2 . Kicked 1 | . . . . . . . . . . . . . . . . . . . . . 1 . . Crushed . | . . . . . . . . . . . . . . . . . . . . . . . . Highest Temperature 348 | 200 348 129 309 240 . 181 110 252 82 2 . 127 84 210 134 135 121 288 164 326 244 156 268 Average Temperature 54 | 101 78 62 100 98 . 55 57 85 54 1 . 48 40 64 42 73 33 90 36 60 69 44 39 Received Heat Transfer 2911 | . 474 30 207 12 . 183 54 107 . . 39 . . 27 . . 9 21 24 544 1112 16 52 Effects 1 | . 1 . . . . . . . . . . . . . . . . . . . . . . Energy Bleed 1 | . 1 . . . . . . . . . . . . . . . . . . . . . . Siege Activations 92 | . . . . . . . . . . . . . . . . . 2 14 10 9 42 . 15 Total Turns 3536 | . . . . . . . . . . . . . . . . . 63 814 220 264 1407 . 768 Longest Duration 428 | . . . . . . . . . . . . . . . . . 43 370 58 69 426 . 428 Martial Activations . | . . . . . . . . . . . . . . . . . . . . . . . . Shielding Activations . | . . . . . . . . . . . . . . . . . . . . . . . . Robots Disrupted . | . . . . . . . . . . . . . . . . . . . . . . . . Combat Hostiles . | . . . . . . . . . . . . . . . . . . . . . . . . Robots Corrupted 24 | . . . . . 1 . 3 3 . . . 6 . . . . . . . 1 4 1 5 Combat Hostiles 9 | . . . . . . . . 2 . . . . . . . . . . . . 3 . 4 Parts Fried 44 | . . . . . 1 . 6 4 . . . 10 . . . . . . . 2 13 2 6 Impact Corruptions 59 | . . . . 1 2 . 9 1 . . . 9 . . . . . 1 . 2 13 2 19 Robots Melted 3 | . . . . 1 . 2 . . . . . . . . . . . . . . . . . Combat Hostiles 3 | . . . . 1 . 2 . . . . . . . . . . . . . . . . . Parts Melted 22 | . 3 . 4 8 . 3 2 . . . . . . . . . . 1 1 . . . . Heat Transferred 6434 | 296 1258 335 2335 750 . 1225 . 50 . . . 185 . . . . . . . . . . . Parts Sabotaged 2 | . . . . . . . . . . . . . . . . . . . . 2 . . . Parts Stolen . | . . . . . . . . . . . . . . . . . . . . . . . . Parts Stripped . | . . . . . . . . . . . . . . . . . . . . . . . . Power Chain Reactions . | . . . . . . . . . . . . . . . . . . . . . . . . Alert | -11 -10 -10 -8 -7 -7 -7 -5 -5 -5 -5 -5 -4 -4 -4 -4 -3 -3 -3 -2 -2 -2 -1 -1 ------- Run | Yrd Mat Sub Mat Fac Sto Rec Fac Ext Cet Arc Hub Fac Upp Upp War Pro Res Qua Res Tes Frg Acc Com Maximum Alert Level 5 | . 1 . 2 . . . 1 1 1 1 . . . . . . 1 1 4 4 5 5 5 Low Security (%) 35 | 100 90 . 61 100 100 100 73 71 97 71 100 100 . . . . 49 27 48 . . . . Level 1 13 | . 9 . 1 . . . 26 28 2 28 . . . . . . 50 72 7 . . . . Level 2 4 | . . . 37 . . . . . . . . . . . . . . . 14 23 9 . . Level 3 4 | . . . . . . . . . . . . . . . . . . . 21 42 7 . . Level 4 2 | . . . . . . . . . . . . . . . . . . . 7 34 6 . . Level 5 10 | . . . . . . . . . . . . . . . . . . . . . 47 74 9 High Security 28 | . . . . . . . . . . . . . . . . . . . . . 28 25 90 Max Security . | . . . . . . . . . . . . . . . . . . . . . . . . Peak Influence 23992 | 5 232 . 479 188 7 103 350 262 205 244 140 106 . . . . 329 372 1230 1323 12964 8808 23992 Initial 7778 | . . . . 188 . . 350 59 112 67 43 63 . . . . . 184 134 691 681 7778 5636 Average 4524 | . 137 . 190 41 . 8 155 87 133 154 25 43 . . . . 177 230 414 937 4484 8000 14193 Influence Increases 43532 | 5 660 40 751 92 7 319 700 600 383 217 265 523 135 130 510 . 995 867 1796 1232 13073 1450 18782 Destroy 0b10 Robot/C 25480 | . 360 40 360 40 . 140 100 340 160 80 80 120 80 40 300 . 420 400 960 880 9160 540 10880 Destroy 0b10 Robot/NC 1195 | 5 45 . 35 5 5 20 25 5 10 5 10 55 . . 30 . 60 45 10 45 365 70 345 Destroy Leader 3242 | . 80 . 68 20 2 . 26 32 . . 12 34 10 . . . 94 154 254 116 1304 118 918 Allied During Kill 432 | . . . . . . . . 102 160 85 77 8 . . . . . . . . . . . Successful Hack 419 | . 25 . 16 24 . 5 58 15 2 . 8 74 . . . . 28 28 14 38 . 60 24 Select Force Hacks 260 | . 60 . . . . 120 . . . . 50 30 . . . . . . . . . . . Disable Machine 1050 | . 30 . 150 . . . 30 60 15 30 . 45 . . . . 150 75 15 30 300 60 60 Anti-Garrison Action 500 | . . . . . . . . . . . . . . . . . 150 . 150 . 150 . 50 Destroy Structure 3634 | . . . 77 3 . 19 36 46 36 2 28 82 . . . . 78 120 198 108 1344 227 1230 Advance Influence 350 | . . . . . . . 350 . . . . . . . . . . . . . . . . Partial Spotted 240 | . . . . . . 15 15 . . 15 . 45 . . . . 15 15 . . . 30 90 Lose Combat Pursuer 4830 | . 60 . 45 . . . 60 . . . . 30 45 90 180 . . 30 195 15 450 45 3585 Active Sensor Use 1900 | . . . . . . . . . . . . . . . . . . . . . . 300 1600 Influence Decreases 19466 | 5 544 156 336 507 7 319 578 522 414 262 259 581 135 202 292 218 666 957 805 1251 1320 5606 3524 Entered New Map 10621 | . . 56 . 227 . . . 63 88 102 81 67 27 15 . 218 . 145 105 539 530 5186 3172 Time Decay 7646 | 5 534 100 306 280 7 249 417 340 206 160 98 489 108 187 292 . 608 696 680 542 770 270 302 Search Patrol Dispatched 100 | . . . . . . . 100 . . . . . . . . . . . . . . . . Lost Part 200 | . 10 . 20 . . 30 . 20 . . . . . . . . 10 10 20 10 20 . 50 Lost Ally 384 | . . . 10 . . 40 . 99 120 . 80 25 . . . . . . . 10 . . . Purge Threat 515 | . . . . . . . 61 . . . . . . . . . 48 106 . 150 . 150 . Squads Dispatched 1724 | . 4 . 1 2 . . 4 2 . . 3 9 . . . . 8 5 . 13 104 23 1546 Investigation 1528 | . 4 . . . . . . . . . 2 2 . . . . 4 1 . 2 . 6 1507 Extermination 29 | . . . . 2 . . 2 . . . 1 4 . . . . . 2 . 3 11 1 3 Reinforcement 17 | . . . . . . . 2 2 . . . 3 . . . . 4 2 . 2 2 . . Assault 147 | . . . . . . . . . . . . . . . . . . . . 6 91 14 36 Garrison 3 | . . . 1 . . . . . . . . . . . . . . . . . . 2 . Intercept . | . . . . . . . . . . . . . . . . . . . . . . . . Searches Triggered 1 | . . . . . . . 1 . . . . . . . . . . . . . . . . Unchained Authorized 2 | . . . . . . . . . . . . . . . . . . 1 . 1 . . . Construction Impeded 1 | . . . . . . . . 1 . . . . . . . . . . . . . . . Haulers Reinforced 3 | . . . . . . . 1 . . . . 1 . . . . 1 . . . . . . Active Scanning Responses 19 | . . . . . . . . . . . . . . . . . . . . . . 3 16 Cargo Convoy Interrupts . | . . . . . . . . . . . . . . . . . . . . . . . . Stealth | -11 -10 -10 -8 -7 -7 -7 -5 -5 -5 -5 -5 -4 -4 -4 -4 -3 -3 -3 -2 -2 -2 -1 -1 --------- Run | Yrd Mat Sub Mat Fac Sto Rec Fac Ext Cet Arc Hub Fac Upp Upp War Pro Res Qua Res Tes Frg Acc Com Distress Signals 39 | . 3 . 1 1 1 3 2 4 2 . . . . . . . 2 . 9 1 1 4 5 Communications Jammed 1 | . . . . . . . . . . . . 1 . . . . . . . . . . . Distress Signals 1 | . . . . . . . . . . . . 1 . . . . . . . . . . . Times Spotted 1529 | . 37 3 21 7 . 13 16 24 11 8 11 20 6 8 97 . 35 27 97 53 531 23 481 Peak Tracking Total 38 | . 4 2 4 2 1 5 7 4 5 1 8 3 4 3 14 . 5 4 15 5 25 8 38 Tactical Retreats 134 | . 2 . 2 . . 1 1 . . . . 2 2 5 5 . . 2 9 1 14 3 85 ECM-based Alert Blocks 191 | . . . . . . . . . . . . . . . . . . . . . . . 191 Traps | -11 -10 -10 -8 -7 -7 -7 -5 -5 -5 -5 -5 -4 -4 -4 -4 -3 -3 -3 -2 -2 -2 -1 -1 ------- Run | Yrd Mat Sub Mat Fac Sto Rec Fac Ext Cet Arc Hub Fac Upp Upp War Pro Res Qua Res Tes Frg Acc Com Traps Triggered 33 | . 3 . . . 1 . . 2 . . 1 6 . . . . 6 1 . 1 10 1 1 Indirectly . | . . . . . . . . . . . . . . . . . . . . . . . . Trap Hack Attempts . | . . . . . . . . . . . . . . . . . . . . . . . . Triggered . | . . . . . . . . . . . . . . . . . . . . . . . . Disarmed . | . . . . . . . . . . . . . . . . . . . . . . . . Reprogrammed . | . . . . . . . . . . . . . . . . . . . . . . . . Reused . | . . . . . . . . . . . . . . . . . . . . . . . . Traps Extracted . | . . . . . . . . . . . . . . . . . . . . . . . . Installed . | . . . . . . . . . . . . . . . . . . . . . . . . Triggered . | . . . . . . . . . . . . . . . . . . . . . . . . Machines | -11 -10 -10 -8 -7 -7 -7 -5 -5 -5 -5 -5 -4 -4 -4 -4 -3 -3 -3 -2 -2 -2 -1 -1 ---------- Run | Yrd Mat Sub Mat Fac Sto Rec Fac Ext Cet Arc Hub Fac Upp Upp War Pro Res Qua Res Tes Frg Acc Com Machines Disabled 91 | . 2 1 10 . . . 2 4 1 2 . 3 . . 2 . 11 5 2 2 34 4 6 Max in Single Turn 6 | . 1 1 6 . . . 1 1 1 . . 1 . . 1 . 1 1 1 1 2 1 2 Garrison Access 8 | . . . . . . . 1 . . . . 1 . . . . 2 . 2 1 1 . . Phase Generator 1 | . . . . . . . . . . . . . . . . . . . . . . . 1 Network Hub 1 | . . . . . . . . . . . 1 . . . . . . . . . . . . Energy Cycler 3 | . . . . . . . . 3 . . . . . . . . . . . . . . . Machines Repaired . | . . . . . . . . . . . . . . . . . . . . . . . . Machines Dismantled 10 | . . . . . . . . 1 1 . . . . . 1 . 6 1 . . . . . Machines Sabotaged 1 | . . . . . . . . . . . 1 . . . . . . . . . . . . Overloaded Fab Kills . | . . . . . . . . . . . . . . . . . . . . . . . . Hacking | -11 -10 -10 -8 -7 -7 -7 -5 -5 -5 -5 -5 -4 -4 -4 -4 -3 -3 -3 -2 -2 -2 -1 -1 --------- Run | Yrd Mat Sub Mat Fac Sto Rec Fac Ext Cet Arc Hub Fac Upp Upp War Pro Res Qua Res Tes Frg Acc Com Machines Accessed 119 | . 10 1 4 6 2 14 6 6 3 . 3 17 1 . 1 . 9 10 3 13 4 4 2 Terminals 79 | . 7 . 4 4 2 6 3 6 3 . 3 11 . . . . 5 7 1 9 3 3 2 Fabricators 4 | . . . . 1 . . . . . . . 1 . . . . . . . 2 . . . Repair Stations 6 | . 1 . . . . . 1 . . . . . . . . . 1 2 . . . 1 . Recycling Units 15 | . 2 . . 1 . 7 1 . . . . 2 . . . . 1 . 1 . . . . Scanalyzers 5 | . . . . . . . . . . . . 2 . . . . 1 1 . 1 . . . Garrison Access 6 | . . . . . . . 1 . . . . 1 . . . . 1 . 1 1 1 . . Total Hacks 335 | . 46 1 9 20 2 29 10 12 10 . 7 46 1 . 1 . 32 39 5 30 12 17 6 Successful 172 | . 31 1 4 7 1 11 9 5 4 . 3 26 1 . 1 . 13 23 2 8 6 12 4 Failed 163 | . 15 . 5 13 1 18 1 7 6 . 4 20 . . . . 19 16 3 22 6 5 2 Catastrophic 43 | . 1 . 1 . . 2 . 2 2 . 1 10 . . . . 6 4 2 9 2 . 1 Database Lockouts . | . . . . . . . . . . . . . . . . . . . . . . . . Manual 168 | . 28 . 6 16 2 16 3 6 1 . 6 26 . . . . 14 18 3 15 2 4 2 Terminals 231 | . 27 . 9 15 2 10 6 12 10 . 7 30 . . . . 22 26 3 21 9 16 6 Fabricators 10 | . . . . 3 . . . . . . . 1 . . . . . . . 6 . . . Repair Stations 33 | . 13 . . . . . 2 . . . . . . . . . 5 12 . . . 1 . Recycling Units 34 | . 6 . . 2 . 17 1 . . . . 4 . . . . 3 . 1 . . . . Scanalyzers 12 | . . . . . . . . . . . . 9 . . . . 1 1 . 1 . . . Garrison Access 10 | . . . . . . . 1 . . . . 2 . . . . 1 . 1 2 3 . . Terminal Hacks 76 | . 7 1 2 2 1 2 3 5 4 . . 8 1 . 1 . 4 12 . 4 6 10 3 Record 9 | . . . . . . . . . 4 . . . . . . . . . . . 5 . . Part Schematic 2 | . . . . . . . . 1 . . . . . . . . . 1 . . . . . Robot Analysis 4 | . 3 . . . . . . . . . . . . . . . . . . . . . 1 Prototype ID Bank 5 | . 3 . . . . . . . . . . . . . . . 1 . . . . 1 . Open Door 6 | . . . . . 1 . 1 1 . . . . 1 . 1 . . . . 1 . . . Branch Access Points 5 | . . . 1 1 . . . . . . . 1 . . . . 1 . . . . 1 . Emergency Access Points 1 | . . . . . . . . . . . . . . . . . . . . . . 1 . Machine Index 1 | . . . . . . . . . . . . . . . . . . . . . . 1 . Terminal Index 4 | . . . . 1 . . . . . . . 1 . . . . 1 1 . . . . . Scanalyzer Index 1 | . . . . . . . . . . . . 1 . . . . . . . . . . . Alert Level 9 | . 1 . 1 . . . . 1 . . . 1 . . . . . 3 . 1 . 1 . Unreport Threat 5 | . . . . . . . 1 . . . . . . . . . 1 1 . 1 . 1 . Locate Traps 8 | . . . . . . . 1 1 . . . 2 . . . . . 2 . 1 . . 1 Security Status 1 | . . . . . . . . . . . . . . . . . . . . . . 1 . Recall Reinforcements 2 | . . . . . . . . . . . . . . . . . . 2 . . . . . Registered Components 1 | . . . . . . . . . . . . 1 . . . . . . . . . . . Registered Prototypes 4 | . . . . . . . . . . . . 1 . . . . . 1 . . . 1 1 Zone Layout 4 | . . . . . . . . 1 . . . . . . . . . 1 . . . 2 . Proto ID Catalog 2 | . . 1 . . . . . . . . . . . . . . . . . . 1 . . Release Object 2 | . . . . . . 2 . . . . . . . . . . . . . . . . . Fabricator Hacks 1 | . . . . . . . . . . . . . . . . . . . . 1 . . . Load Schematic 1 | . . . . . . . . . . . . . . . . . . . . 1 . . . Repair Station Hacks 24 | . 12 . . . . . 2 . . . . . . . . . 2 8 . . . . . Scan Component 13 | . 6 . . . . . 1 . . . . . . . . . 1 5 . . . . . Repair 11 | . 6 . . . . . 1 . . . . . . . . . 1 3 . . . . . Recycling Unit Hacks 12 | . 2 . . 1 . 4 1 . . . . 2 . . . . 1 . 1 . . . . Retrieve Components 12 | . 2 . . 1 . 4 1 . . . . 2 . . . . 1 . 1 . . . . Scanalyzer 10 | . . . . . . . . . . . . 8 . . . . 1 1 . . . . . Insert Component 2 | . . . . . . . . . . . . 1 . . . . . 1 . . . . . Retrieve Study 8 | . . . . . . . . . . . . 7 . . . . 1 . . . . . . Garrison Access Hacks 4 | . . . . . . . 1 . . . . 1 . . . . 1 . . 1 . . . Seal Access 4 | . . . . . . . 1 . . . . 1 . . . . 1 . . 1 . . . Unauthorized Hacks 45 | . 10 . 2 4 . 5 2 . . . 3 7 . . . . 4 2 1 2 . 2 1 Terminals 36 | . 8 . 2 3 . 1 2 . . . 3 6 . . . . 4 2 1 2 . 1 1 Assimilate 5 | . 1 . . 1 . . . . . . . 2 . . . . . . . 1 . . . Botnet 24 | . 2 . 2 2 . 1 2 . . . 1 4 . . . . 4 2 1 1 . 1 1 Skim 5 | . 5 . . . . . . . . . . . . . . . . . . . . . . Sabotage 2 | . . . . . . . . . . . 2 . . . . . . . . . . . . Fabricators 1 | . . . . 1 . . . . . . . . . . . . . . . . . . . Liberate 1 | . . . . 1 . . . . . . . . . . . . . . . . . . . Repair Stations 1 | . . . . . . . . . . . . . . . . . . . . . . 1 . Patch 1 | . . . . . . . . . . . . . . . . . . . . . . 1 . Recycling Units 6 | . 2 . . . . 4 . . . . . . . . . . . . . . . . . Tunnel 6 | . 2 . . . . 4 . . . . . . . . . . . . . . . . . Scanalyzers 1 | . . . . . . . . . . . . 1 . . . . . . . . . . . Extract 1 | . . . . . . . . . . . . 1 . . . . . . . . . . . Garrison Access . | . . . . . . . . . . . . . . . . . . . . . . . . Data Cores Recovered 4 | . 1 . . 1 . . . . . . . . . . . . . . . . 1 1 . Used 1 | . . . . . . . . . . . . . . . . . . . . . . 1 . Hacking Detections 89 | . 8 . 4 6 . 11 4 4 4 . 3 8 . . . . 7 8 2 12 3 3 2 Full Trace Events 9 | . . . . . . 3 . . . . . 1 . . . . 1 1 . 2 . 1 . Feedback Events 1 | . . . . . . 1 . . . . . . . . . . . . . . . . . Corruption 1 | . . . . . . 1 . . . . . . . . . . . . . . . . . Feedback Blocked . | . . . . . . . . . . . . . . . . . . . . . . . . Robot Schematics Acquired 4 | . . . . . . . . . . . . . . . . . . . . 2 2 . . Robots Built . | . . . . . . . . . . . . . . . . . . . . . . . . Authchips . | . . . . . . . . . . . . . . . . . . . . . . . . Time . | . . . . . . . . . . . . . . . . . . . . . . . . Total Robot Build Rating . | . . . . . . . . . . . . . . . . . . . . . . . . Part Schematics Acquired 29 | . . . . . . . . 1 . . . 1 . . . . . 4 . 9 14 . . Parts Built . | . . . . . . . . . . . . . . . . . . . . . . . . Authchips . | . . . . . . . . . . . . . . . . . . . . . . . . Time . | . . . . . . . . . . . . . . . . . . . . . . . . Total Part Build Rating . | . . . . . . . . . . . . . . . . . . . . . . . . Part Studies Acquired 6 | . . . . . . . . . . . . 5 . . . . 1 . . . . . . Parts Repaired 10 | . 6 . . . . . 1 . . . . . . . . . 1 2 . . . . . Time 598 | . 180 . . . . . 12 . . . . . . . . . 54 352 . . . . . Parts Recycled . | . . . . . . . . . . . . . . . . . . . . . . . . Recycled Matter . | . . . . . . . . . . . . . . . . . . . . . . . . Retrieved Matter . | . . . . . . . . . . . . . . . . . . . . . . . . Retrieved Components 24 | . 7 . . . . 5 . . . . . 10 . . . . 1 . 1 . . . . Parts Scanalyzed . | . . . . . . . . . . . . . . . . . . . . . . . . Part Schematics Acquired . | . . . . . . . . . . . . . . . . . . . . . . . . Parts Damaged . | . . . . . . . . . . . . . . . . . . . . . . . . Bothacking | -11 -10 -10 -8 -7 -7 -7 -5 -5 -5 -5 -5 -4 -4 -4 -4 -3 -3 -3 -2 -2 -2 -1 -1 ------------ Run | Yrd Mat Sub Mat Fac Sto Rec Fac Ext Cet Arc Hub Fac Upp Upp War Pro Res Qua Res Tes Frg Acc Com Used RIF Installer . | . . . . . . . . . . . . . . . . . . . . . . . . Robots Hacked . | . . . . . . . . . . . . . . . . . . . . . . . . Non-combat . | . . . . . . . . . . . . . . . . . . . . . . . . Combat . | . . . . . . . . . . . . . . . . . . . . . . . . Robot Hacks Applied . | . . . . . . . . . . . . . . . . . . . . . . . . Relay Couplers Released 5 | . . . . . . . . . . . . . . . . . 2 . 1 . 2 . . Machine Destruction 5 | . . . . . . . . . . . . . . . . . 2 . 1 . 2 . . Fabnet Peak Effective % . | . . . . . . . . . . . . . . . . . . . . . . . . Robots Rewired 20 | . . . . . . 4 . 16 . . . . . . . . . . . . . . . Allies Hacked . | . . . . . . . . . . . . . . . . . . . . . . . . Hacks Repelled . | . . . . . . . . . . . . . . . . . . . . . . . . Allies | -11 -10 -10 -8 -7 -7 -7 -5 -5 -5 -5 -5 -4 -4 -4 -4 -3 -3 -3 -2 -2 -2 -1 -1 -------- Run | Yrd Mat Sub Mat Fac Sto Rec Fac Ext Cet Arc Hub Fac Upp Upp War Pro Res Qua Res Tes Frg Acc Com Total Allies 34 | . 1 . . 1 . 4 . 21 5 . . 1 . . . . . . . 1 . . . Largest Group 13 | . 1 1 1 1 . 4 . 13 12 8 5 1 . . . . . . . 1 . . . Highest-Rated Group 821 | . 10 10 10 9 . 77 . 507 821 692 480 96 . . . . . . . 26 . . . Highest-Rated Ally 159 | . 10 10 10 9 . 32 . 159 159 159 96 96 . . . . . . . 26 . . . Total Orders 15 | . . . . . . 3 . . . . 3 6 . . . . . . . 3 . . . STAY 7 | . . . . . . 1 . . . . 2 3 . . . . . . . 1 . . . ROAM 2 | . . . . . . 1 . . . . . . . . . . . . . 1 . . . FOLLOW 6 | . . . . . . 1 . . . . 1 3 . . . . . . . 1 . . . Ally Attacks 186 | . . . . . . 14 . 55 52 38 21 6 . . . . . . . . . . . Total Damage 5877 | . . . . . . 280 . 1235 1503 1329 1351 179 . . . . . . . . . . . Kills 34 | . . . . . . 2 . 10 11 5 5 1 . . . . . . . . . . . Allies Corrupted 4 | . . . . . . . . . . . 3 1 . . . . . . . . . . . Allies Melted 3 | . . . . . . . . . . . . . . . . . . . 2 1 . . . Intel | -11 -10 -10 -8 -7 -7 -7 -5 -5 -5 -5 -5 -4 -4 -4 -4 -3 -3 -3 -2 -2 -2 -1 -1 ------- Run | Yrd Mat Sub Mat Fac Sto Rec Fac Ext Cet Arc Hub Fac Upp Upp War Pro Res Qua Res Tes Frg Acc Com Active Infowar (turns) 42627 | . 454 . 229 1005 257 1180 1055 908 . 52 239 1937 693 410 1181 595 3113 4456 4593 1549 6362 786 11573 Optics 37702 | . 454 . . . . . . . . . . 1937 693 410 1181 595 3113 4456 4593 1549 6362 786 11573 Sensors 23604 | . . . . 1005 257 1180 1055 908 . 52 239 1891 693 408 1149 594 3036 3378 4138 1166 2455 . . A.S.S. 12579 | . . . . . . . . . . . . . . . . . . . . . 220 786 11573 Terrain 229 | . . . 229 . . . . . . . . . . . . . . . . . . . . Jamming 4518 | . . . . . . . . . . . . 1768 691 410 136 . 275 516 . 98 624 . . ECM 1463 | . . . . . . . . . . . . . . . . . . . . . . . 1463 Robot Analysis Total 4 | . 3 . . . . . . . . . . . . . . . . . . . . . 1 Derelict Logs Recovered 5 | . . 1 . . . . . . . . . . 2 2 . . . . . . . . . Drone Launches . | . . . . . . . . . . . . . . . . . . . . . . . . Drone Recoveries . | . . . . . . . . . . . . . . . . . . . . . . . . Exploration | -11 -10 -10 -8 -7 -7 -7 -5 -5 -5 -5 -5 -4 -4 -4 -4 -3 -3 -3 -2 -2 -2 -1 -1 ------------- Run | Yrd Mat Sub Mat Fac Sto Rec Fac Ext Cet Arc Hub Fac Upp Upp War Pro Res Qua Res Tes Frg Acc Com Turns Passed 48874 | 98 1962 1472 899 1050 257 2526 1143 1203 427 339 250 1937 693 410 1181 595 3113 4456 4593 1549 6362 786 11573 Spaces Moved 41807 | 35 714 690 442 557 154 1230 1010 682 232 122 377 2485 1040 639 1489 679 3221 3370 4369 1106 3791 1015 12358 Core 9 | 9 . . . . . . . . . . . . . . . . . . . . . . . Treads 5626 | 26 282 226 30 557 154 703 . . . . . . . . . 13 208 99 94 . 73 926 2235 Legs 25829 | . . . . . . . 58 . . . . . . . . 339 2910 3271 4275 1106 3718 29 10123 Wheels 1496 | . 432 464 412 . . 188 . . . . . . . . . . . . . . . . . Hover 104 | . . . . . . . . 1 . . . . . . . . 103 . . . . . . Flight 8743 | . . . . . . 339 952 681 232 122 377 2485 1040 639 1489 327 . . . . . 60 . Fastest Speed 27 | 50 140 155 125 160 160 85 80 41 41 41 41 37 37 37 37 37 54 68 68 68 68 27 27 Average Speed 64 | 146 154 190 134 160 160 156 81 65 41 41 41 39 37 37 37 47 63 72 69 68 71 39 43 Slowest Speed 795 | 160 160 240 240 160 160 250 85 540 41 41 41 41 37 37 44 795 68 240 240 68 240 217 225 Overloaded Moves . | . . . . . . . . . . . . . . . . . . . . . . . . Propulsion Burnouts . | . . . . . . . . . . . . . . . . . . . . . . . . Robots Hopped 29 | . . . . . . . . 6 . . 7 13 . . 2 1 . . . . . . . Potential Cave-ins 8 | . . . . . . . . 8 . . . . . . . . . . . . . . . Cave-ins Triggered . | . . . . . . . . . . . . . . . . . . . . . . . . Exploration Rate (%) 57 | 5 98 32 32 15 25 98 17 67 79 74 28 59 96 69 92 65 51 97 60 79 41 24 88 Regions Visited 23 Branch Regions 15 Pre-discovered Areas 9 | . 3 1 . . . 4 . . . . . . . 1 . . . . . . . . . Known Exits Taken 22 | . 1 1 1 1 1 1 1 1 1 1 1 1 1 1 1 1 1 1 1 1 1 1 . Unknown Exits Taken 1 | 1 . . . . . . . . . . . . . . . . . . . . . . . Scrap Searched 10 | . . 5 . . . . . . . . . . 3 . . 2 . . . . . . . Spaces Dug 225 | . . . . 3 . 1 7 3 . . 2 27 1 5 2 1 5 12 5 34 22 13 82 Terrain Destroyed 1274 | . . . 75 3 . 22 21 21 1 1 4 45 10 32 12 2 41 57 105 49 194 78 501 Melee 27 | . . . . 3 . 1 7 . . . 2 12 . . 2 . . . . . . . . Projectile 861 | . . . 4 . . . 14 21 1 1 2 33 10 32 10 2 41 57 66 19 191 56 301 AOE 357 | . . . 71 . . 21 . . . . . . . . . . . . 39 30 1 22 173 Terrain Rammed . | . . . . . . . . . . . . . . . . . . . . . . . . Walls Destroyed . | . . . . . . . . . . . . . . . . . . . . . . . . Machines Disabled . | . . . . . . . . . . . . . . . . . . . . . . . . Actions | -11 -10 -10 -8 -7 -7 -7 -5 -5 -5 -5 -5 -4 -4 -4 -4 -3 -3 -3 -2 -2 -2 -1 -1 --------- Run | Yrd Mat Sub Mat Fac Sto Rec Fac Ext Cet Arc Hub Fac Upp Upp War Pro Res Qua Res Tes Frg Acc Com Total 61303 | 58 1425 817 673 692 162 1807 1258 1347 538 404 451 3313 1323 770 2035 950 4134 5276 5757 1777 6906 1367 18063 Wait 14736 | 1 569 80 105 95 2 462 166 406 253 268 58 626 259 87 375 252 619 1644 1079 501 2077 261 4491 Move 41729 | 34 713 689 441 556 153 1229 1009 669 231 121 364 2458 1039 638 1485 676 3220 3369 4368 1105 3790 1014 12358 Hop 26 | . . . . . . . . 6 . . 5 13 . . 1 1 . . . . . . . Pick Up 273 | 4 29 6 20 6 1 13 12 5 4 . . 10 . . 7 . 18 21 31 4 56 5 21 Fast Attach 244 | 6 6 4 13 2 . 4 2 5 5 3 . 21 . 2 17 7 24 22 8 10 48 4 31 Attach 67 | . 2 3 3 1 . 2 4 1 . . . 2 . . 2 . 1 2 5 1 16 3 19 Detach 47 | . 2 1 2 . . 7 . . . 1 . 4 . . . . . 2 1 . 11 2 14 Swap 549 | . 6 1 12 10 3 16 13 23 7 2 5 21 2 2 4 3 21 37 35 38 141 12 135 Drop 438 | 1 13 6 33 9 1 21 13 10 11 1 1 27 . 1 23 8 46 38 35 11 80 4 45 Fire 2766 | 12 85 27 44 6 . 15 24 53 19 8 4 51 23 40 107 3 129 133 194 107 674 60 948 Melee 65 | . . . . 7 1 1 14 2 . . 3 28 . . 6 . . . . . 3 . . Ram . | . . . . . . . . . . . . . . . . . . . . . . . . Kick 1 | . . . . . . . . . . . . . . . . . . . . . 1 . . Crush 2 | . . . . . . . . . . . . . . . . . . . . . . 2 . Escape Stasis 88 | . . . . . . . . 26 . . 8 45 . . . . . . . . 9 . . Rewire 170 | . . . . . . 37 . 132 . . . . . . . . . . . . . . 1 Trap . | . . . . . . . . . . . . . . . . . . . . . . . . Miscellaneous 102 | . . . . . 1 . 1 9 8 . 3 7 . . 8 . 56 8 1 . . . . Route ------- -11/Scrapyard -10/Materials (discovered 5 exits: [*Mat x3] / [*Min] / *Sub) -10/Subcaves (discovered 3 exits: *Mat x2 / Rec) -8/Materials -7/Factory (discovered 4 exits: *Fac / *Sto / *Low x2) -7/Storage -7/Recycling -5/Factory (discovered 2 exits: *Fac / *Ext) -5/Extension (discovered 2 exits: *Fac / *Cet) -5/Cetus (discovered 2 exits: *Fac / *Arc) -5/Archives -5/Hub_04(d) -4/Factory (discovered 3 exits: *Res / *Upp x2) -4/Upper Caves (discovered 2 exits: *Upp / *War) -4/Upper Caves (discovered 2 exits: *Res / *War) -4/Warlord -3/Proximity Caves -3/Research (discovered 5 exits: *Res x2 / Arm / *Qua x2) -3/Quarantine -2/Research (discovered 2 exits: *Acc / *Tes) -2/Testing (discovered 3 exits: *Acc / [*Sec] / *Frg) -2/Protoforge -1/Access -1/Command (discovered 2 exits: [*Sur x2]) 0b10 Command History --------- Turn | Location | Event 40 | -11/Scrapyard | Discovered new exit (range 14) 99 | -11/Scrapyard | Entered Materials 259 | -10/Materials | Discovered new exit (range 6) 309 | -10/Materials | Build established: Mutant 379 | -10/Materials | Core integrity fell below 50% 550 | -10/Materials | Discovered new exit (range 17) 1264 | -10/Materials | Repaired Imp. Heat Sink 1291 | -10/Materials | Repaired Ion Engine 1319 | -10/Materials | Repaired Lgt. Cannon 1346 | -10/Materials | Repaired Lgt. Treads 1373 | -10/Materials | Repaired Ion Engine 1412 | -10/Materials | Repaired Lgt. Nuclear Core 1534 | -10/Materials | Discovered new exit (range 9) 1762 | -10/Materials | Discovered new exit (range 16) 1797 | -10/Materials | Learned Storage emergency access door positions 1833 | -10/Materials | Learned location of 2 exits from Subcaves 1857 | -10/Materials | Identified exit to Subcaves 1857 | -10/Materials | Learned location of 1 exit from Materials 1870 | -10/Materials | Learned location of 2 exits from Mines 1876 | -10/Materials | Learned 2 Storage zone layouts 1877 | -10/Materials | Learned location of 1 exit from Storage 1878 | -10/Materials | Learned location of 2 exits from Mines 1904 | -10/Materials | Learned location of Mines (-9) 2061 | -10/Materials | Entered Subcaves 2061 | -10/Subcaves | Accompanied by 1 ally 2062 | -10/Subcaves | Approached by a straggling Scientist 2062 | -10/Subcaves | Identified exit to Recycling 2062 | -10/Subcaves | Identified exit to Materials 2104 | -10/Subcaves | Learned location of Zion (-7) 2238 | -10/Subcaves | Visited 4L-MR0's lab 2260 | -10/Subcaves | Found Rainbow Chip 2261 | -10/Subcaves | Attached Rainbow Chip, gained temporary slots: Power, Propulsion, Utility, Weapon 2450 | -10/Subcaves | Disturbed a concealed Subdweller 2547 | -10/Subcaves | Build established: Scavenger-Gunner 3015 | -10/Subcaves | Core integrity fell below 20% 3047 | -10/Subcaves | Shifting Twisted Machinery released Enh. Flamer 3070 | -10/Subcaves | Discovered exit to Materials (range 10) 3395 | -10/Subcaves | Shifting Twisted Machinery released Slug Cannon 3533 | -10/Subcaves | Entered Materials 3533 | -8/Materials | Accompanied by 1 ally 3533 | -8/Materials | Evolved 4 slots: Propulsion x2, Utility x2 3534 | -8/Materials | Identified exit to Factory 4086 | -8/Materials | Garrison activated, responded to threat 4432 | -8/Materials | Entered Factory 4432 | -7/Factory | Evolved 2 slots: Utility x1, Weapon x1 4736 | -7/Factory | Build established: Scavenger-Skirmisher 4813 | -7/Factory | Discovered new exit (range 16) 4939 | -7/Factory | Identified exit to Factory 5010 | -7/Factory | Discovered new exit (range 3) 5013 | -7/Factory | Identified exit to Lower Caves 5079 | -7/Factory | Identified exit to Storage 5482 | -7/Factory | Entered Storage 5634 | -7/Storage | Used back door to open Recycling access 5739 | -7/Storage | Entered Recycling 5878 | -7/Recycling | Lost 3 parts (1p1n1w) 6675 | -7/Recycling | Discovered new exit (range 5) 6679 | -7/Recycling | Identified exit to Factory 7099 | -7/Recycling | Entered Scraplab 7107 | -7/Recycling | Found Prototype Device 7107 | -7/Recycling | Identified Scrap Engine 7513 | -7/Recycling | Build established: Mutant 7940 | -7/Recycling | Build established: Construct 8265 | -7/Recycling | Entered Factory 8265 | -5/Factory | Evolved 4 slots: Power x1, Propulsion x1, Utility x2 8472 | -5/Factory | Discovered new exit (range 13) 8506 | -5/Factory | Identified exit to Factory 8565 | -5/Factory | Search patrols dispatched 8587 | -5/Factory | Discovered new exit (range 10) 9299 | -5/Factory | Repaired Hrd. Medium Armor Plating 9407 | -5/Factory | Identified exit to Extension 9408 | -5/Factory | Entered Extension 9529 | -5/Extension | Lost 3 allies 9805 | -5/Extension | Lost 3 allies 9879 | -5/Extension | Rescued a captive Derelict 9907 | -5/Extension | Rescued a captive Derelict 9907 | -5/Extension | Rescued a captive Derelict 10188 | -5/Extension | Energy Cycler disabled 10188 | -5/Extension | Rescued a captive Derelict 10189 | -5/Extension | Rescued a captive Derelict 10192 | -5/Extension | Rescued a captive Derelict 10198 | -5/Extension | Rescued A7 10204 | -5/Extension | Rescued a captive Derelict 10518 | -5/Extension | Discovered exit to Factory (range 10) 10519 | -5/Extension | Discovered new exit (range 6) 10542 | -5/Extension | Identified exit to Cetus 10578 | -5/Extension | Build established: Commander-Construct 10611 | -5/Extension | Entered Cetus 10611 | -5/Cetus | Accompanied by 12 allies (A7) 10616 | -5/Cetus | Acquired a Cetus Manufacturing Module code from A7 10638 | -5/Cetus | Spotted Cetus Guard 10638 | -5/Cetus | Spotted Cetus Guard 10640 | -5/Cetus | Allies destroyed Cetus Guard 10640 | -5/Cetus | Spotted Cetus Guard 10642 | -5/Cetus | Allies destroyed Cetus Guard 10647 | -5/Cetus | Spotted Cetus Guard 10650 | -5/Cetus | Allies destroyed Cetus Guard 10656 | -5/Cetus | Allies destroyed Cetus Guard 10694 | -5/Cetus | Lost 5 allies 10714 | -5/Cetus | Started Cetus Manufacturing Module 10736 | -5/Cetus | Escorted A7 to Cetus Mainframe 10739 | -5/Cetus | Manufactured an Enhanced Grunt 10764 | -5/Cetus | Manufactured an Enhanced Grunt 10789 | -5/Cetus | Manufactured an Enhanced Grunt 10814 | -5/Cetus | Manufactured an Enhanced Grunt 10839 | -5/Cetus | Manufactured an Enhanced Grunt 10858 | -5/Cetus | Discovered new exit (range 15) 10940 | -5/Cetus | Spotted Cetus Guard 10940 | -5/Cetus | Allies destroyed Cetus Guard 10940 | -5/Cetus | Spotted Cetus Guard 10940 | -5/Cetus | Spotted Cetus Guard 10941 | -5/Cetus | Spotted Cetus Guard 10953 | -5/Cetus | Destroyed Cetus Guard 10955 | -5/Cetus | Allies destroyed Cetus Guard 10955 | -5/Cetus | Allies destroyed Cetus Guard 10964 | -5/Cetus | Discovered exit to Factory (range 16) 10968 | -5/Cetus | Met Revision 17 10982 | -5/Cetus | Lost 4 allies 11001 | -5/Cetus | Identified exit to Archives 11038 | -5/Cetus | Entered Archives 11038 | -5/Archives | Accompanied by 8 allies (A7) 11043 | -5/Archives | Received a hacking code to weaken MAIN.C 11327 | -5/Archives | Discovered new exit (range 15) 11359 | -5/Archives | Identified exit to Hub_04(d) 11377 | -5/Archives | Entered Hub_04(d) 11377 | -5/Hub_04(d) | Accompanied by 5 allies 11389 | -5/Hub_04(d) | Discovered exit to Factory (range 16) 11614 | -5/Hub_04(d) | Network Hub disabled 11617 | -5/Hub_04(d) | Spotted Lightning 11618 | -5/Hub_04(d) | Spotted Lightning 11618 | -5/Hub_04(d) | Spotted Lightning 11627 | -5/Hub_04(d) | Entered Factory 11627 | -4/Factory | Accompanied by 1 ally 11627 | -4/Factory | Evolved 2 slots: Propulsion x1, Utility x1 11647 | -4/Factory | Identified exit to Upper Caves 11657 | -4/Factory | Lost 4 allies 11910 | -4/Factory | Build established: Construct 12311 | -4/Factory | Spotted B-86 Titan 12636 | -4/Factory | Discovered new exit (range 5) 12637 | -4/Factory | Identified exit to Research 12833 | -4/Factory | Spotted B-86 Titan 13564 | -4/Factory | Entered Upper Caves 13588 | -4/Upper Caves | A Derelict revealed a hidden shortcut to "reach the base" 13592 | -4/Upper Caves | Identified exit to Warlord 13666 | -4/Upper Caves | Identified exit to Upper Caves 14207 | -4/Upper Caves | Learned 4 Research zone layouts 14257 | -4/Upper Caves | Entered another Upper Caves area 14264 | -4/Upper Caves | Discovered exit to Research (range 19) 14636 | -4/Upper Caves | Found Alien Artifact 14636 | -4/Upper Caves | Identified Core Expander 14636 | -4/Upper Caves | Installed Core Expander, added new Power slot 14664 | -4/Upper Caves | Discovered exit to Warlord (range 4) 14667 | -4/Upper Caves | Entered Warlord 14680 | -4/Warlord | System corruption cleaned by Quarantine Array 14803 | -4/Warlord | Found Prototype Device 14803 | -4/Warlord | Identified System Purifier 14815 | -4/Warlord | Found Prototype Device 14815 | -4/Warlord | Identified Exp. Phase Shifter 14822 | -4/Warlord | Found Prototype Hackware 14825 | -4/Warlord | Found Prototype Processor 14875 | -4/Warlord | Met Warlord 14897 | -4/Warlord | Visited the Vortex Lab 14900 | -4/Warlord | Warlord's base attacked by MAIN.C 14902 | -4/Warlord | Found Prototype Energy Gun 14902 | -4/Warlord | Identified Vortex Rifle 14908 | -4/Warlord | Found Vortex Rifle 15098 | -4/Warlord | Build established: Scout 15236 | -4/Warlord | Warlord forces counterattacked 15336 | -4/Warlord | Spotted Executioner 15339 | -4/Warlord | Spotted Striker 15368 | -4/Warlord | Lost 9 allies 15384 | -4/Warlord | Found Prototype Device 15384 | -4/Warlord | Identified Adv. Kinecellerator 15387 | -4/Warlord | Found Prototype Processor 15387 | -4/Warlord | Identified Exp. Core Analyzer 15400 | -4/Warlord | P-70 Sage assimilated allied 9K-1HM(g) 15400 | -4/Warlord | Spotted Striker 15424 | -4/Warlord | P-70 Sage assimilated allied C3-Q2E(b) 15483 | -4/Warlord | Lost 15 allies 15514 | -4/Warlord | Spotted Striker 15538 | -4/Warlord | Spotted Executioner 15575 | -4/Warlord | Warlord base infiltrated, sounded retreat 15639 | -4/Warlord | Spotted Striker 15643 | -4/Warlord | Spotted Executioner 15719 | -4/Warlord | Spotted Striker 15746 | -4/Warlord | Spotted Striker 15759 | -4/Warlord | Spotted Striker 15760 | -4/Warlord | Spotted Striker 15800 | -4/Warlord | Spotted Executioner 15800 | -4/Warlord | Spotted Striker 15801 | -4/Warlord | Spotted Striker 15823 | -4/Warlord | Discovered new exit (range 14) 15827 | -4/Warlord | Identified exit to Proximity Caves 15847 | -4/Warlord | Lost 8 allies 15848 | -4/Warlord | Entered Proximity Caves 16013 | -3/Proximity Caves | Discovered exit to Research (range 11) 16443 | -3/Proximity Caves | Entered Research 16443 | -3/Research | Evolved 2 slots: Utility x1, Weapon x1 16443 | -3/Research | Identified System Mapper 16444 | -3/Research | Identified exit to Armory 16448 | -3/Research | Discovered new exit (range 8) 16451 | -3/Research | Identified exit to Research 16460 | -3/Research | Identified exit to Quarantine 16643 | -3/Research | Revision forces began assault on 0b10 16663 | -3/Research | Met up with Revision 17++ 16796 | -3/Research | Identified Spectral Analyzer 16824 | -3/Research | Build established: Hacker-Tank 16905 | -3/Research | Found Prototype Device 16950 | -3/Research | Identified Exp. Thermal Defense Suite 17052 | -3/Research | Discovered exit to Research (range 18) 17069 | -3/Research | Found Prototype Processor 17101 | -3/Research | Identified Exp. Signal Interpreter 17112 | -3/Research | Found Exp. Signal Interpreter 17143 | -3/Research | Research terminal network offline 17643 | -3/Research | Spotted Striker 17710 | -3/Research | Spotted Striker 17711 | -3/Research | Spotted Striker 17716 | -3/Research | Destroyed Striker 18044 | -3/Research | Spotted Striker 18099 | -3/Research | Destroyed Striker 18101 | -3/Research | Spotted Striker 18101 | -3/Research | Spotted Striker 18101 | -3/Research | Spotted Striker 18118 | -3/Research | Destroyed Striker 18136 | -3/Research | Destroyed Striker 18138 | -3/Research | Destroyed Striker 18139 | -3/Research | Lost 3 allies 18243 | -3/Research | Found Gamma Bomb Array 18277 | -3/Research | Found Adv. Kinecellerator 18308 | -3/Research | Build established: Hacker-Construct 19233 | -3/Research | Repaired Centrium Heavy Treads 19556 | -3/Research | Entered Quarantine 19642 | -3/Quarantine | Found Alien Artifact 20324 | -3/Quarantine | Discovered exit to Research (range 9) 20410 | -3/Quarantine | Cryocooling Duct disabled 20412 | -3/Quarantine | Cryocooling Duct disabled 20425 | -3/Quarantine | Ambient heat levels rising (+20) 20425 | -3/Quarantine | Non-combat units ordered to evacuate 20427 | -3/Quarantine | Ambient heat levels rising (+20) 20427 | -3/Quarantine | Combat units ordered to evacuate 20527 | -3/Quarantine | Quarantine Guard activated 20599 | -3/Quarantine | Spotted Quarantine Guard 20602 | -3/Quarantine | Spotted Quarantine Guard 20602 | -3/Quarantine | Destroyed Quarantine Guard 20605 | -3/Quarantine | Spotted Quarantine Guard 20607 | -3/Quarantine | Destroyed Quarantine Guard 20610 | -3/Quarantine | Destroyed Quarantine Guard 20618 | -3/Quarantine | Spotted Quarantine Guard 20624 | -3/Quarantine | Spotted Quarantine Guard 20778 | -3/Quarantine | Destroyed Quarantine Guard 20800 | -3/Quarantine | Destroyed Quarantine Guard 20882 | -3/Quarantine | Spotted Quarantine Guard 20905 | -3/Quarantine | Spotted Quarantine Guard 20909 | -3/Quarantine | Destroyed Quarantine Guard 20913 | -3/Quarantine | Destroyed Quarantine Guard 21312 | -3/Quarantine | Spotted Quarantine Guard 21314 | -3/Quarantine | Destroyed Quarantine Guard 21381 | -3/Quarantine | Identified Subatomic Replicator 21389 | -3/Quarantine | Spotted Quarantine Guard 21431 | -3/Quarantine | Destroyed Quarantine Guard 21479 | -3/Quarantine | Spotted Quarantine Guard 21588 | -3/Quarantine | Spotted Quarantine Guard 21603 | -3/Quarantine | Destroyed Quarantine Guard 21664 | -3/Quarantine | Destroyed Quarantine Guard 21707 | -3/Quarantine | Spotted Quarantine Guard 21754 | -3/Quarantine | Destroyed Quarantine Guard 21878 | -3/Quarantine | Build established: Construct 21922 | -3/Quarantine | Repaired Centrium Heavy Treads 22065 | -3/Quarantine | Repaired Centrium Medium Armor Plating 22513 | -3/Quarantine | Unchained authorized (CL-0N3) 22900 | -3/Quarantine | Build established: Scavenger-Construct 23322 | -3/Quarantine | Build established: Construct 24012 | -3/Quarantine | Entered Research 24012 | -2/Research | Warlord forces began assault on 0b10 24012 | -2/Research | Evolved 2 slots: Utility x2 24042 | -2/Research | Met up with Warlord 24052 | -2/Research | Spotted B-90 Cyclops 24065 | -2/Research | Destroyed B-90 Cyclops 24122 | -2/Research | Research machine network offline 24432 | -2/Research | Borebot progress halted 24546 | -2/Research | Lost 3 allies 24565 | -2/Research | Borebot progress halted 24588 | -2/Research | Borebot progress halted 24888 | -2/Research | Spotted Striker 25077 | -2/Research | Warlord invited to help at Command 25077 | -2/Research | Given Cave Seal Controls access code 25113 | -2/Research | Spotted Striker 25117 | -2/Research | Spotted Striker 25224 | -2/Research | Found Fusion Bomb Launcher 25230 | -2/Research | Discovered new exit (range 6) 25233 | -2/Research | Identified exit to Testing 25245 | -2/Research | Build established: Scavenger-Construct 25303 | -2/Research | Spotted Striker 25356 | -2/Research | Found Prototype Device 25358 | -2/Research | Identified Exp. Shock Absorption System 25691 | -2/Research | Spotted Striker 25691 | -2/Research | Spotted Executioner 25693 | -2/Research | Spotted Striker 25704 | -2/Research | Destroyed Executioner 25744 | -2/Research | Spotted Striker 25789 | -2/Research | Found Prototype Launcher 25790 | -2/Research | Identified Enh. Gamma Bomb Array 25834 | -2/Research | Spotted Executioner 25982 | -2/Research | Spotted Striker 25985 | -2/Research | Spotted Striker 25985 | -2/Research | Spotted Striker 25989 | -2/Research | Warlord destroyed during the assault 25991 | -2/Research | Spotted Striker 26050 | -2/Research | Lost 12 allies 26196 | -2/Research | Found Prototype Processor 26203 | -2/Research | Identified Exp. Melee Analysis Suite 26223 | -2/Research | Spotted Striker 26258 | -2/Research | Spotted B-90 Cyclops 26321 | -2/Research | Lost 4 allies 26335 | -2/Research | Spotted Striker 26352 | -2/Research | Spotted Striker 26353 | -2/Research | Spotted Executioner 26361 | -2/Research | Destroyed Executioner 26370 | -2/Research | Destroyed Striker 26405 | -2/Research | Found Exp. Core Analyzer 26493 | -2/Research | Lost 3 allies 26528 | -2/Research | Lost 3 allies 26529 | -2/Research | Spotted Executioner 26594 | -2/Research | Spotted Striker 26598 | -2/Research | Destroyed Striker 26605 | -2/Research | Spotted Executioner 26606 | -2/Research | Spotted Striker 26613 | -2/Research | Destroyed Striker 26617 | -2/Research | Destroyed Executioner 26624 | -2/Research | Lost 3 allies 26648 | -2/Research | Destroyed 8 combat bots 26683 | -2/Research | Spotted Striker 26692 | -2/Research | Spotted Striker 26697 | -2/Research | Spotted Striker 26745 | -2/Research | Lost 3 allies 26828 | -2/Research | Spotted Executioner 26844 | -2/Research | Spotted Executioner 26855 | -2/Research | Spotted Striker 26862 | -2/Research | Spotted Striker 26886 | -2/Research | Destroyed Striker 26913 | -2/Research | Destroyed Striker 27031 | -2/Research | Spotted Striker 27063 | -2/Research | Destroyed Striker 27095 | -2/Research | Lost 4 allies 27153 | -2/Research | Build established: Construct 27253 | -2/Research | Found Exp. Core Analyzer 27265 | -2/Research | Found Exp. Core Analyzer 27311 | -2/Research | Spotted Striker 27340 | -2/Research | Spotted Striker 27360 | -2/Research | Destroyed Striker 27361 | -2/Research | Spotted Executioner 27361 | -2/Research | Spotted Striker 27374 | -2/Research | Destroyed Executioner 27383 | -2/Research | Spotted Striker 27392 | -2/Research | Destroyed Striker 27406 | -2/Research | Lost 7 allies 27414 | -2/Research | Found Exp. Core Analyzer 27417 | -2/Research | Found Prototype Processor 27417 | -2/Research | Identified Exp. Targeting Computer 27427 | -2/Research | Spotted Striker 27478 | -2/Research | Build established: Scavenger-Construct 27548 | -2/Research | Spotted Executioner 27803 | -2/Research | Discovered new exit (range 13) 27824 | -2/Research | Identified exit to Access 27858 | -2/Research | Spotted Striker 28098 | -2/Research | Spotted Striker 28185 | -2/Research | Spotted Striker 28217 | -2/Research | Spotted Executioner 28220 | -2/Research | Spotted Striker 28250 | -2/Research | Destroyed Striker 28252 | -2/Research | Destroyed Executioner 28470 | -2/Research | Spotted Executioner 28496 | -2/Research | Build established: Construct 28522 | -2/Research | Destroyed Executioner 28541 | -2/Research | Found Adv. Kinecellerator 28605 | -2/Research | Entered Testing 28630 | -2/Testing | Unchained authorized (CL-0N3) 28855 | -2/Testing | First assault squad dispatched 29195 | -2/Testing | Destroyed 9 combat bots 29441 | -2/Testing | Spotted PY-EGT12I9E3R 29474 | -2/Testing | Destroyed PY-EGT12I9E3R 29668 | -2/Testing | Discovered exit to Access (range 22) 29676 | -2/Testing | Destroyed 12 combat bots 29676 | -2/Testing | Scanned by Researcher 29685 | -2/Testing | Found Prototype Protection 29685 | -2/Testing | Identified Lgt. Regenerative Plating 29688 | -2/Testing | Found Prototype Protection 29688 | -2/Testing | Identified Hvy. Regenerative Plating 29800 | -2/Testing | Build established: Scavenger-Construct 29996 | -2/Testing | Spotted Fortress 30045 | -2/Testing | Discovered new exit (range 7) 30045 | -2/Testing | Discovered new exit (range 6) 30051 | -2/Testing | Identified exit to Protoforge 30154 | -2/Testing | Entered Protoforge 30260 | -2/Protoforge | Spotted Hotshot 30262 | -2/Protoforge | Spotted Hotshot 30262 | -2/Protoforge | Spotted Hotshot 30343 | -2/Protoforge | Build established: Construct 30398 | -2/Protoforge | Spotted Hotshot 30465 | -2/Protoforge | Spotted Overlord 30600 | -2/Protoforge | Found Prototype Storage 30605 | -2/Protoforge | Identified Cep. Chromion Battery 30685 | -2/Protoforge | Superfortress began startup sequence 30828 | -2/Protoforge | Destroyed 8 combat bots 30904 | -2/Protoforge | First assault squad dispatched 30951 | -2/Protoforge | Found Cep. Weapon Articulator 30959 | -2/Protoforge | Spotted Immortal 30959 | -2/Protoforge | Spotted Immortal 30963 | -2/Protoforge | Spotted Decapitator 30963 | -2/Protoforge | Spotted Decapitator 30963 | -2/Protoforge | Spotted Decapitator 31005 | -2/Protoforge | Spotted V387-m 31028 | -2/Protoforge | Destroyed V387-m 31056 | -2/Protoforge | Forge Plexus network access discovered 31072 | -2/Protoforge | Spotted V952-n 31073 | -2/Protoforge | Spotted V427-k 31073 | -2/Protoforge | Spotted V321-y 31073 | -2/Protoforge | Spotted V167-s 31076 | -2/Protoforge | Found Cep. Antigrav Storage Unit 31078 | -2/Protoforge | Found Cep. Matter Streamer 31081 | -2/Protoforge | Found Cep. NT7 Matterbank 31083 | -2/Protoforge | Found Cep. NT7 Matterbank 31138 | -2/Protoforge | Found Crosscalibrator 31142 | -2/Protoforge | Found Cep. Weapon Articulator 31159 | -2/Protoforge | Destroyed Immortal 31167 | -2/Protoforge | Destroyed Immortal 31213 | -2/Protoforge | Found Cep. Energy Mantle 31215 | -2/Protoforge | Found Cep. Reaction Jets 31220 | -2/Protoforge | Found Cep. Beam Splitter 31221 | -2/Protoforge | Found Exp. Remote Shield 31242 | -2/Protoforge | Destroyed Decapitator 31246 | -2/Protoforge | Destroyed Decapitator 31248 | -2/Protoforge | Destroyed Decapitator 31350 | -2/Protoforge | Destroyed 11 combat bots 31401 | -2/Protoforge | Spotted V069-y 31401 | -2/Protoforge | Spotted V250-p 31422 | -2/Protoforge | Found Cep. Smart ZDS 31460 | -2/Protoforge | Spotted Decapitator 31460 | -2/Protoforge | Spotted Decapitator 31460 | -2/Protoforge | Spotted Decapitator 31460 | -2/Protoforge | Spotted Decapitator 31470 | -2/Protoforge | Destroyed Decapitator 31470 | -2/Protoforge | Destroyed Decapitator 31470 | -2/Protoforge | Destroyed Decapitator 31492 | -2/Protoforge | Destroyed Decapitator 31711 | -2/Protoforge | System corruption reached 10% 31725 | -2/Protoforge | Found Exp. Kinecellerator 31726 | -2/Protoforge | Found Cep. Weapon Articulator 31730 | -2/Protoforge | Found Exp. Kinecellerator 31748 | -2/Protoforge | Spotted AP7-3 31748 | -2/Protoforge | Spotted AP7-3 31784 | -2/Protoforge | Destroyed AP7-3 31790 | -2/Protoforge | Destroyed AP7-3 31906 | -2/Protoforge | Found Prototype Device 31913 | -2/Protoforge | Identified Cep. Dimensional Manipulator 31920 | -2/Protoforge | Found Cep. Core Analysis Suite 31925 | -2/Protoforge | Found Faulty Cep. Thermoelectric Network 31937 | -2/Protoforge | Found Faulty Cep. Thermoelectric Network 32192 | -2/Protoforge | Additional patrols dispatched to research labs 32230 | -2/Protoforge | Found Cep. Nanofilaments [Tensile] 32230 | -2/Protoforge | Installed Cep. Nanofilaments [Tensile], 3 resistances modified: KI +20%, TH -10%, I +20% 32244 | -2/Protoforge | Found Transdimensional Reconstructor 32317 | -2/Protoforge | Destroyed 8 combat bots 32366 | -2/Protoforge | Destroyed 8 combat bots 32496 | -2/Protoforge | Spotted V311-n 32496 | -2/Protoforge | Spotted V631-n 32496 | -2/Protoforge | Spotted V094-i 32560 | -2/Protoforge | Destroyed 13 combat bots 33000 | -2/Protoforge | Found Cep. Recoil Nullifier 33214 | -2/Protoforge | Found Mni. Quantum Capacitor 33216 | -2/Protoforge | Found Faulty Mni. Quantum Capacitor 33328 | -2/Protoforge | Destroyed 11 combat bots 33480 | -2/Protoforge | Found Cep. Miniperforator 33557 | -2/Protoforge | Destroyed 10 combat bots 33822 | -2/Protoforge | Destroyed 8 combat bots 33827 | -2/Protoforge | Destroyed Overlord 34073 | -2/Protoforge | Destroyed 9 combat bots 34073 | -2/Protoforge | Found Prototype Processor 34073 | -2/Protoforge | Identified Exp. Armor Integrity Analyzer 34109 | -2/Protoforge | Spotted Decapitator 34109 | -2/Protoforge | Spotted Decapitator 34109 | -2/Protoforge | Spotted V735-h 34109 | -2/Protoforge | Spotted V524-u 34110 | -2/Protoforge | Spotted Decapitator 34115 | -2/Protoforge | Destroyed Decapitator 34115 | -2/Protoforge | Destroyed Decapitator 34124 | -2/Protoforge | Destroyed Decapitator 34166 | -2/Protoforge | Destroyed V524-u 34186 | -2/Protoforge | Found Prototype Device 34186 | -2/Protoforge | Identified Adv. Particle Accelerator 34190 | -2/Protoforge | Found Prototype Device 34190 | -2/Protoforge | Identified Exp. Weapon Cycler 34251 | -2/Protoforge | Found Exp. Terror Saw 34357 | -2/Protoforge | Destroyed 8 combat bots 34423 | -2/Protoforge | Found Faulty Exp. Active Sensor Suite 34437 | -2/Protoforge | Found Faulty Exp. Active Sensor Suite 34644 | -2/Protoforge | Destroyed 13 combat bots 34657 | -2/Protoforge | Used Subatomic Replicator to replicate Cep. Miniperforator 34690 | -2/Protoforge | High security lockdown imminent 34738 | -2/Protoforge | Destroyed 10 combat bots 34770 | -2/Protoforge | High security lockdown engaged 34878 | -2/Protoforge | Destroyed 18 combat bots 34971 | -2/Protoforge | Destroyed 19 combat bots 35019 | -2/Protoforge | Destroyed Investigator 35058 | -2/Protoforge | Destroyed 19 combat bots 35093 | -2/Protoforge | Spotted Immortal 35102 | -2/Protoforge | Destroyed Immortal 35104 | -2/Protoforge | Destroyed Superfortress 35105 | -2/Protoforge | Destroyed Hotshot 35267 | -2/Protoforge | Found Cep. Network Penetrator 35375 | -2/Protoforge | Spotted Striker 35377 | -2/Protoforge | Destroyed Striker 35380 | -2/Protoforge | Spotted Striker 35386 | -2/Protoforge | Destroyed Striker 35388 | -2/Protoforge | Spotted Investigator 35390 | -2/Protoforge | Destroyed Investigator 35414 | -2/Protoforge | Destroyed 25 combat bots 35544 | -2/Protoforge | Spotted Investigator 35549 | -2/Protoforge | Destroyed Investigator 35692 | -2/Protoforge | Found Exp. Jetlance 35922 | -2/Protoforge | Spotted Executioner 35924 | -2/Protoforge | Destroyed Executioner 35925 | -2/Protoforge | Destroyed Striker 35951 | -2/Protoforge | Spotted Executioner 35952 | -2/Protoforge | Destroyed Executioner 35960 | -2/Protoforge | Spotted Striker 35964 | -2/Protoforge | Destroyed Striker 35979 | -2/Protoforge | Spotted Striker 35980 | -2/Protoforge | Destroyed Striker 35982 | -2/Protoforge | Destroyed Striker 35983 | -2/Protoforge | Spotted Executioner 35983 | -2/Protoforge | Destroyed Executioner 36017 | -2/Protoforge | Destroyed 52 combat bots 36053 | -2/Protoforge | Spotted Striker 36053 | -2/Protoforge | Spotted Executioner 36076 | -2/Protoforge | Destroyed Striker 36081 | -2/Protoforge | Destroyed Executioner 36106 | -2/Protoforge | Destroyed 10 combat bots 36121 | -2/Protoforge | Spotted Striker 36127 | -2/Protoforge | Destroyed Striker 36137 | -2/Protoforge | Destroyed Executioner 36162 | -2/Protoforge | Destroyed 8 combat bots 36207 | -2/Protoforge | Destroyed Executioner 36218 | -2/Protoforge | Destroyed Striker 36224 | -2/Protoforge | Destroyed Investigator 36229 | -2/Protoforge | Spotted Executioner 36230 | -2/Protoforge | Spotted Striker 36232 | -2/Protoforge | Destroyed Executioner 36233 | -2/Protoforge | Spotted Striker 36239 | -2/Protoforge | Destroyed Striker 36241 | -2/Protoforge | Destroyed Executioner 36241 | -2/Protoforge | Destroyed Executioner 36248 | -2/Protoforge | Destroyed Striker 36248 | -2/Protoforge | Spotted Striker 36248 | -2/Protoforge | Spotted Striker 36255 | -2/Protoforge | System corruption reached 30% 36255 | -2/Protoforge | Spotted Executioner 36255 | -2/Protoforge | Spotted Striker 36256 | -2/Protoforge | Destroyed Striker 36258 | -2/Protoforge | Destroyed Executioner 36259 | -2/Protoforge | Destroyed Striker 36261 | -2/Protoforge | Spotted Executioner 36262 | -2/Protoforge | Destroyed Striker 36263 | -2/Protoforge | Destroyed Executioner 36291 | -2/Protoforge | Destroyed 47 combat bots 36439 | -2/Protoforge | Spotted Hotshot 36439 | -2/Protoforge | Spotted Hotshot 36439 | -2/Protoforge | Spotted Hotshot 36439 | -2/Protoforge | Spotted Hotshot 36445 | -2/Protoforge | Destroyed Hotshot 36445 | -2/Protoforge | Destroyed Hotshot 36447 | -2/Protoforge | Destroyed Hotshot 36447 | -2/Protoforge | Destroyed Hotshot 36448 | -2/Protoforge | Spotted Hotshot 36456 | -2/Protoforge | Spotted Hotshot 36457 | -2/Protoforge | Destroyed Hotshot 36459 | -2/Protoforge | Destroyed Hotshot 36463 | -2/Protoforge | Spotted Hotshot 36465 | -2/Protoforge | Spotted Hotshot 36471 | -2/Protoforge | Discovered exit to Access (range 23) 36471 | -2/Protoforge | Spotted Hotshot 36475 | -2/Protoforge | Spotted Hotshot 36475 | -2/Protoforge | Destroyed Hotshot 36481 | -2/Protoforge | Destroyed Hotshot 36481 | -2/Protoforge | Spotted Hotshot 36488 | -2/Protoforge | Destroyed Hotshot 36491 | -2/Protoforge | Spotted Hotshot 36499 | -2/Protoforge | Spotted Hotshot 36501 | -2/Protoforge | Spotted Hotshot 36509 | -2/Protoforge | Destroyed 18 combat bots 36516 | -2/Protoforge | Entered Access 36516 | -1/Access | Evolved 2 slots: Utility x2 36594 | -1/Access | Identified exit to Command 36750 | -1/Access | Spotted Striker 36755 | -1/Access | Spotted Striker 36766 | -1/Access | First assault squad dispatched 36878 | -1/Access | Found Exp. Core Analyzer 36976 | -1/Access | Spotted B-99 Colossus 36976 | -1/Access | Spotted B-99 Colossus 36988 | -1/Access | Spotted Striker 36988 | -1/Access | Spotted Striker 37005 | -1/Access | Spotted Striker 37007 | -1/Access | Destroyed Striker 37009 | -1/Access | Spotted Striker 37009 | -1/Access | Destroyed Striker 37098 | -1/Access | High security lockdown imminent 37126 | -1/Access | Spotted Striker 37127 | -1/Access | Spotted Striker 37129 | -1/Access | Build established: Hacker-Skirmisher 37146 | -1/Access | Spotted Executioner 37156 | -1/Access | Garrison activated, responded to threat 37178 | -1/Access | High security lockdown engaged 37200 | -1/Access | Destroyed 10 combat bots 37302 | -1/Access | Entered Command 37551 | -1/Command | Destroyed 7 combat bots 37552 | -1/Command | First assault squad dispatched 37633 | -1/Command | Build established: Gunner 37976 | -1/Command | High security lockdown imminent 38056 | -1/Command | High security lockdown engaged 38216 | -1/Command | Spotted Executioner 38216 | -1/Command | Spotted Striker 38219 | -1/Command | Destroyed Striker 38219 | -1/Command | Destroyed Executioner 38248 | -1/Command | Destroyed 16 combat bots 38372 | -1/Command | Spotted Investigator 38373 | -1/Command | Destroyed Investigator 38415 | -1/Command | Destroyed 7 combat bots 38506 | -1/Command | Spotted Striker 38506 | -1/Command | Spotted Executioner 38506 | -1/Command | Spotted Striker 38508 | -1/Command | Destroyed Executioner 38509 | -1/Command | Destroyed Striker 38510 | -1/Command | Destroyed Striker 38549 | -1/Command | Destroyed Investigator 38574 | -1/Command | Destroyed 23 combat bots 38592 | -1/Command | Spotted Executioner 38593 | -1/Command | Destroyed Executioner 38618 | -1/Command | Destroyed 10 combat bots 38657 | -1/Command | Spotted Investigator 38657 | -1/Command | Destroyed Investigator 38667 | -1/Command | Destroyed Executioner 38667 | -1/Command | Spotted Executioner 38673 | -1/Command | Destroyed Executioner 38680 | -1/Command | Destroyed Executioner 38680 | -1/Command | Spotted Striker 38684 | -1/Command | Destroyed Striker 38688 | -1/Command | Destroyed Striker 38738 | -1/Command | Destroyed 30 combat bots 38907 | -1/Command | Spotted Striker 38909 | -1/Command | Spotted Executioner 38910 | -1/Command | Destroyed Executioner 38911 | -1/Command | Destroyed Striker 38931 | -1/Command | Destroyed Executioner 38936 | -1/Command | Destroyed Executioner 38940 | -1/Command | Destroyed Striker 38941 | -1/Command | Destroyed Executioner 38943 | -1/Command | Destroyed Executioner 38950 | -1/Command | Spotted Striker 38955 | -1/Command | Spotted Executioner 38955 | -1/Command | Spotted Executioner 38955 | -1/Command | Spotted Executioner 38955 | -1/Command | Spotted Executioner 38968 | -1/Command | Destroyed 18 combat bots 38982 | -1/Command | Destroyed Striker 38991 | -1/Command | Destroyed Executioner 39006 | -1/Command | Destroyed Executioner 39009 | -1/Command | Destroyed Executioner 39010 | -1/Command | Destroyed Executioner 39031 | -1/Command | Destroyed 11 combat bots 39086 | -1/Command | Found Adv. Kinecellerator 39131 | -1/Command | Found Prototype Launcher 39131 | -1/Command | Identified Containment Facilitator 39641 | -1/Command | Spotted Executioner 39643 | -1/Command | Destroyed Executioner 39647 | -1/Command | Destroyed Executioner 39841 | -1/Command | Phase Generator disabled 40309 | -1/Command | Spotted Executioner 40309 | -1/Command | Spotted Executioner 40363 | -1/Command | Destroyed Executioner 40407 | -1/Command | Destroyed Executioner 40988 | -1/Command | Spotted B-99 Colossus 41023 | -1/Command | Spotted B-99 Colossus 41055 | -1/Command | Destroyed B-99 Colossus 41599 | -1/Command | Destroyed B-99 Colossus 41651 | -1/Command | Spotted Striker 41798 | -1/Command | Spotted Alpha 7 41973 | -1/Command | Destroyed Alpha 7 41978 | -1/Command | Found Prototype Device 41978 | -1/Command | Identified Exp. ECM Suite 42251 | -1/Command | Spotted Striker 42364 | -1/Command | Destroyed Striker 42374 | -1/Command | Spotted Executioner 42398 | -1/Command | Destroyed Executioner 42399 | -1/Command | Spotted Executioner 42400 | -1/Command | Spotted Executioner 42644 | -1/Command | Destroyed Striker 42678 | -1/Command | Spotted Alpha 7 42695 | -1/Command | Destroyed Alpha 7 42697 | -1/Command | Spotted Executioner 42729 | -1/Command | Destroyed Executioner 42883 | -1/Command | Destroyed Executioner 43257 | -1/Command | Spotted B-99 Colossus 43298 | -1/Command | Destroyed Executioner 43342 | -1/Command | Destroyed B-99 Colossus 43532 | -1/Command | Spotted B-99 Colossus 43538 | -1/Command | Destroyed B-99 Colossus 43578 | -1/Command | Spotted M Guard 44031 | -1/Command | Spotted Combat Programmer 44031 | -1/Command | Spotted Combat Programmer 44031 | -1/Command | Spotted M Guard 44049 | -1/Command | Destroyed Combat Programmer 44051 | -1/Command | Destroyed Combat Programmer 44415 | -1/Command | Destroyed M Guard 44595 | -1/Command | Destroyed M Guard 44595 | -1/Command | All MAIN.C guards destroyed 44607 | -1/Command | Found Prototype Device 44607 | -1/Command | Identified AEGIS Remote Shield 44609 | -1/Command | Found Prototype Launcher 44609 | -1/Command | Identified Ragnarok Missile Launcher 44801 | -1/Command | Destroyed 7 combat bots 45048 | -1/Command | Build established: Scavenger-Gunner 45213 | -1/Command | Destroyed 18 combat bots 45343 | -1/Command | Destroyed 22 combat bots 45488 | -1/Command | Destroyed 14 combat bots 45619 | -1/Command | Destroyed 9 combat bots 45800 | -1/Command | Build established: Skirmisher 45902 | -1/Command | Destroyed 17 combat bots 45973 | -1/Command | Destroyed 15 combat bots 46229 | -1/Command | Destroyed 28 combat bots 46452 | -1/Command | Destroyed 14 combat bots 46809 | -1/Command | Destroyed 7 combat bots 47001 | -1/Command | Destroyed 19 combat bots 47048 | -1/Command | Destroyed 12 combat bots 47143 | -1/Command | Destroyed 9 combat bots 47290 | -1/Command | Destroyed 7 combat bots 47362 | -1/Command | Destroyed 7 combat bots 47435 | -1/Command | Destroyed 10 combat bots 47668 | -1/Command | Destroyed 10 combat bots 47965 | -1/Command | Destroyed 7 combat bots 48031 | -1/Command | Destroyed 8 combat bots 48320 | -1/Command | Destroyed 12 combat bots 48497 | -1/Command | Met MAIN.C 48503 | -1/Command | Destroyed MAIN.C Shell 48504 | -1/Command | MAIN.C activated Command garrisons 48515 | -1/Command | Destroyed MAIN.C 48524 | -1/Command | Discovered new exit (range 42) 48524 | -1/Command | Discovered new exit (range 71) 48524 | -1/Command | Extracted map data and part IDs from MAIN.C's data core 48570 | -1/Command | Found Exp. System Purifier 48875 | -1/Command | Interfaced with 0b10 Conduit 48875 | *** | Assimilated 0b10! Last Messages --------------- 48797_ R-10 Processor collects Hds. Centrium Heavy Treads. 48797_ Destroyed Com. Wheel. 48797_ Destroyed Imp. Ion Engine. 48797_ Destroyed Com. Wheel. 48797_ R-10 Processor destroyed. 48799_ K-01 Serf collects debris. 48801_ Acquired 16 matter. 48802_ K-01 Serf collects debris. 48803_ Dropped Exp. Biometal Heavy Treads. 48803_ Acquired Hds. Centrium Heavy Treads. 48805_ Acquired 10 matter. 48807_ K-01 Serf collects debris. 48841_ Dropped Adv. Component Analysis Suite. 48841_ Acquired Graviton Cannon. 48873_ K-01 Serf collects debris. 48875_ Interfacing with system... [Achievement: 75k Club] [Achievement: 100k Club] [Achievement: 150k Club] [Achievement: Death Machine] Map ----- +----------------------------------------------------+ | ############################################### | | ############################################### | | ############################################### | | ############################################### | | # ############################################### | | # ############################################### | | # ############################################### | | # # ######################################## | | # # ######################################## | | # # ######################################## | | # # ######################################## | | # # ######################################## | | # ######################################## | | + ######################################## | | # #####""""""" """" ############## | | # #####"" "" ############## | | # #####""""" "" ############## | | + #####""""""""""" k == | | # #####" " """ !!!! | | # # #####"" """""" ! + | | # ############"" """""" =############## | | # ############ " """""" ############## | | # ############ " "" ! ############## | | # ############ " "= %! ""############## | | # ############"""""""""=!%!!"""""""############## | | # ############"" @!"""""""""############## | | # ############ """""""""""############## | | # ############ " " " " ############## | | # ############ " " " " ############## | | k " " " """" " ############## | | """ " " """" ############## | | " " " " ############## | | ##+############ """""""""" " ############## | | ######## " """ " """"""""############## | | ######## """ " " " ############## | | ########################################### | | ########################################### | | """ ########################################### | | "Y ########################################### | | """ ########################################### | | ########################################### | | ########################################### | | ################################################## | | ################################################## | | ################################################## | | ################################################## | | ################################################## | | ################################################## | | ################################################## | | ################################################## | +----------------------------------------------------+ Best States ------------- Heat Dissipation 87 Coolant Potential 120 Energy Generation 81 Energy Capacity 3470 Matter Stores 450 Matter Capacity 800 Sight Range 24 Robot Scan Range 20 Terrain Scan Range 16 Terrain Scan Density 110 ECM Strength 3 Jamming Range 16 Base Temperature (-) 150 Armor Coverage 1200 Resistance: KI 20 Resistance: TH 75 Resistance: EM 25 Resistance: I 20 Weapon Cycling 30 Phase Shifting 20 Evasion (%) 81 Targeting Accuracy 30 Launcher Accuracy 40 Core Analysis 11 Recoil Reduction 99 Particle Charging 30 Kinecelleration 66 Salvage Targeting 1 Offensive Hacking 50 Defensive Hacking 12 Item Schematics ----------------- Mic. Antimatter Reactor | -5/Extension | Hacked Weight Redist. System | -4/Factory | Extracted Hvy. Dispersion Rifle | -3/Quarantine | Archive Diametric Drive | -3/Quarantine | Archive Centrium Heavy Treads | -3/Quarantine | Archive Hcp. Storage Unit | -3/Quarantine | Hacked Adv. Gravity Neutralizer | -2/Testing | Archive Cld. Phase Cannon | -2/Testing | Archive Adv. Micro-nuke Launcher | -2/Testing | Archive Exp. Targeting Computer | -2/Testing | Archive Exp. Matter Compressor | -2/Testing | Archive Exp. Thermal Defense Suite | -2/Testing | Archive Exp. EM Shield | -2/Testing | Archive Enh. Multireflex Exoskeleton | -2/Testing | Archive Adv. Energy Well | -2/Testing | Archive Gravity Neutralizer | -2/Protoforge | Archive Hellfire Missile Launcher | -2/Protoforge | Archive Cld. Antigrav System | -2/Protoforge | Archive Exp. Reaction Control System | -2/Protoforge | Archive Ionic Axe | -2/Protoforge | Archive Exp. Terrain Scan Processor | -2/Protoforge | Archive Adv. EM Shield | -2/Protoforge | Archive Enh. Armored Heavy Treads | -2/Protoforge | Archive Com. Mass Driver | -2/Protoforge | Archive Com. Tesla Bomb Launcher | -2/Protoforge | Archive Tiamat Missile Launcher | -2/Protoforge | Archive Exp. Heat Sink | -2/Protoforge | Archive Imp. Lightning Gun | -2/Protoforge | Archive Cld. Q-thruster | -2/Protoforge | Archive Robot Schematics ------------------ B-74 Champion | -2/Testing | Archive A-02 Transporter | -2/Testing | Archive S-43 Plague | -2/Protoforge | Archive X-87 Electro | -2/Protoforge | Archive Fabricated ------------ Nothing Repaired ---------- Imp. Heat Sink | 22% | -10/Materials Ion Engine | 3% | -10/Materials Lgt. Cannon | 31% | -10/Materials Lgt. Treads | 40% | -10/Materials Ion Engine | 56% | -10/Materials Lgt. Nuclear Core | 54% | -10/Materials Hrd. Medium Armor Plating | 34% | -5/Factory Centrium Heavy Treads | 66% | -3/Research Centrium Heavy Treads | 37% | -3/Quarantine Centrium Medium Armor Plating | 32% | -3/Quarantine Studied --------- Mic. Fission Core | -4/Factory | Hacked Powered Hammer | -4/Factory | Hacked Proton Missile Launcher | -4/Factory | Hacked Hvy. Phase Cannon | -4/Factory | Hacked Hvy. Missile Launcher | -4/Factory | Hacked Gamma Bomb Array | -3/Research | Hacked Alien Tech Used ----------------- Core Expander Concept Nanofilaments [Tensile] Subatomic Replicator Achievements -------------- 100k Club 150k Club 75k Club Anti-science Crusade Bigger Is Better Cool Guys Death Machine Dominance Asserted Hammer Time Irresistible Scrap Some Acronyms Are Better Than Others Tailor-made Tank Life Unwanted Attention Welcome To The Revolution Well-fed Force Field Worth The Wait Challenges ------------ None Game ------ Seed LegDiametricGun Manual? 0 Play Time 08:51:19 Cumulative 1571.7 hours Start 2025.10.13 @ 00:24:36 End 2025.10.15 @ 01:56:43 Sessions 11 Manual Loads 0 Difficulty Rogue Special Mode None Game No. 1114 Rogue 1074 Adventurer 40 Explorer 0 Win Type 4 Total 198 Types 84/10/74/2/2/4/16/2/1/3 Lore% 97 Gallery% 97 Achievement% 69 Wizard Run 0 Options --------- Layout 0 ASCII 0 Keyboard 0 Movement Numpad Keybinds 0 Fullscreen 0 Font 20/Terminus Map View 76x50 Zoom Use 0% Tactical HUD 1 Map Filters NONE Filters NONE Steam 1 RUN: 7736d23e-b852-4252-9e8c-15910a6569c8